Workbook

Sheet 1A DE SEPTIEMBRE 2016
T1: =SUBTOTAL(9,T9:T264) -> 0 | U1: 39169.3247 | V1: 1651046.04 | W1: 66041.73 | X1: 115571.97 | Y1: 0 | Z1: 181613.7 | AA1: 1651046.04 | AB1: 1832659.74 | AD1: =SUBTOTAL(9,AD9:AD264) -> 18000 | AE1: =SUBTOTAL(9,AE9:AE264) -> 0 | AF1: =SUBTOTAL(9,AF9:AF243) ->  | AG1: =SUBTOTAL(9,AG9:AG264) -> 144412.38 | AH1: =SUBTOTAL(9,AH9:AH264) -> 5366.58 | AI1: =SUBTOTAL(9,AI9:AI264) -> 1675613.91 | AJ1: =SUBTOTAL(9,AJ9:AJ243) -> 0
V2: =TRUNC(U2*P2,2) -> 0 | W2: =TRUNC(U2*P2*0.04,2) -> 0 | X2: =TRUNC(U2*0.07*P2,2) -> 0 | Y2: =S2 -> 0 | Z2: =TRUNC(X2+W2+(IF(Y2>519,519,Y2))+IF(R2=0,0,R2*U2),2) -> 0 | AA2: =TRUNC((IF(R2=0,P2*U2,(P2-R2)*U2))+(IF(Y2<519,0,Y2-519)),2)+T2 -> 0 | AB2: =Z2+AA2 -> 0 | AC2: =W2 -> 0 | AF2: =IF(U2>0.01,(AA2-VLOOKUP(AA2,quincenal,1))*VLOOKUP(AA2,quincenal,3)+VLOOKUP(AA2,quincenal,2)-VLOOKUP(AA2,subquincenal,2),0) -> 0 | AG2: =TRUNC(IF(AF2>0.01,AF2,0),2) -> 0 | AH2: =TRUNC(IF(AF2<0.01,-AF2,0),2) -> 0 | AI2: =AB2-AD2-AE2-AG2+AH2-W2 -> 0
A3: H. AYUNTAMIENTO DE ETZATLAN, JALISCO
B4: ADMINISTRACION 2015-2018
B5: NOMINA CORRESPONDIENTE A LA 2DA QUINCENA DE SEPTIEMBRE DE 2016
D6: Etzatlán, Jalisco a 30 de Septiembre de 2016.
B7: CAPITULO | C7: PARTIDA | D7: NOMBRE | E7: RFC | F7: CURP | G7: FECHA DE INGRESO | H7: CARGO | P7: DIAS LABORADOS | Q7: PAGO CON | R7: DIAS CON INCAPACIDAD | S7: TIEMPO EXTRA | T7: OTROS INGRESOS | U7: SUELDO POR DIA PROPUESTO | V7: SUELDO BASE | W7: FONDO DE AHORRO | X7: APOYO EDUCACIONAL | Y7: TIEMPO EXTRA | Z7: SUB TOTAL EXENTO | AA7: SUB TOTAL GRAVADO | AB7: SUB TOTAL A PAGAR | AC7: FONDO DE AHORRO | AD7: PRESTAMOS | AE7: OTRAS DEDUCCIONES | AF7: CALCULO | AG7: I.S.R. | AH7: SUBSIDIO AL EMPLEO | AI7: TOTAL A PAGAR | AJ7: FIRMA DE RECIBIDO
D8: SALA DE REGIDORES
A9: 1 | B9: 1 | C9: 1 | D9: GOMEZ ALVARADO MA MAGDALENA | E9: FEGC520708 | F9: FEGC520708HJCRMR08 | G9: 2012-10-01 | H9: REGIDOR | P9: 15 | Q9: TARJETA | S9: 0 | T9: 0 | U9: =16688/30 -> 556.2666667 | V9: =TRUNC(U9*P9,2) -> 8344 | W9: =TRUNC(U9*P9*0.04,2) -> 333.76 | X9: =TRUNC(U9*0.07*P9,2) -> 584.08 | Y9: =S9 -> 0 | Z9: =TRUNC(X9+W9+(IF(Y9>519,519,Y9))+IF(R9=0,0,R9*U9),2) -> 917.84 | AA9: =TRUNC((IF(R9=0,P9*U9,(P9-R9)*U9))+(IF(Y9<519,0,Y9-519)),2)+T9 -> 8344 | AB9: =Z9+AA9 -> 9261.84 | AE9: 0 | AF9: =IF(U9>0.01,(AA9-VLOOKUP(AA9,quincenal,1))*VLOOKUP(AA9,quincenal,3)+VLOOKUP(AA9,quincenal,2)-VLOOKUP(AA9,subquincenal,2),0) -> 1235.089224 | AG9: =TRUNC(IF(AF9>0.01,AF9,0),2) -> 1235.08 | AH9: =TRUNC(IF(AF9<0.01,-AF9,0),2) -> 0 | AI9: =AB9-AD9-AE9-AG9+AH9 -> 8026.76 | AK9: 1
A10: 2 | D10: COVARRUBIAS VALENCIA JOSE | H10: REGIDOR | P10: 15 | Q10: TARJETA | S10: 0 | T10: 0 | U10: 556.2666667 | V10: =TRUNC(U10*P10,2) -> 8344 | W10: =TRUNC(U10*P10*0.04,2) -> 333.76 | X10: =TRUNC(U10*0.07*P10,2) -> 584.08 | Y10: =S10 -> 0 | Z10: =TRUNC(X10+W10+(IF(Y10>519,519,Y10))+IF(R10=0,0,R10*U10),2) -> 917.84 | AA10: =TRUNC((IF(R10=0,P10*U10,(P10-R10)*U10))+(IF(Y10<519,0,Y10-519)),2)+T10 -> 8344 | AB10: =Z10+AA10 -> 9261.84 | AD10: 0 | AE10: 0 | AF10: =IF(U10>0.01,(AA10-VLOOKUP(AA10,quincenal,1))*VLOOKUP(AA10,quincenal,3)+VLOOKUP(AA10,quincenal,2)-VLOOKUP(AA10,subquincenal,2),0) -> 1235.089224 | AG10: =TRUNC(IF(AF10>0.01,AF10,0),2) -> 1235.08 | AH10: =TRUNC(IF(AF10<0.01,-AF10,0),2) -> 0 | AI10: =AB10-AD10-AE10-AG10+AH10 -> 8026.76 | AK10: 2
A11: 3 | B11: 1 | C11: 1 | D11: BARAJAS DE LA TORRE ABIGAIL | G11: 2012-10-01 | H11: REGIDOR | P11: 15 | Q11: TARJETA | S11: 0 | T11: 0 | U11: 556.2666667 | V11: =TRUNC(U11*P11,2) -> 8344 | W11: =TRUNC(U11*P11*0.04,2) -> 333.76 | X11: =TRUNC(U11*0.07*P11,2) -> 584.08 | Y11: =S11 -> 0 | Z11: =TRUNC(X11+W11+(IF(Y11>519,519,Y11))+IF(R11=0,0,R11*U11),2) -> 917.84 | AA11: =TRUNC((IF(R11=0,P11*U11,(P11-R11)*U11))+(IF(Y11<519,0,Y11-519)),2)+T11 -> 8344 | AB11: =Z11+AA11 -> 9261.84 | AD11: 0 | AE11: 0 | AF11: =IF(U11>0.01,(AA11-VLOOKUP(AA11,quincenal,1))*VLOOKUP(AA11,quincenal,3)+VLOOKUP(AA11,quincenal,2)-VLOOKUP(AA11,subquincenal,2),0) -> 1235.089224 | AG11: =TRUNC(IF(AF11>0.01,AF11,0),2) -> 1235.08 | AH11: =TRUNC(IF(AF11<0.01,-AF11,0),2) -> 0 | AI11: =AB11-AD11-AE11-AG11+AH11 -> 8026.76 | AK11: 3
A12: 4 | B12: 1 | C12: 1 | D12: MELCHOR NAVARRO OBED | G12: 2012-10-01 | H12: REGIDOR | P12: 15 | Q12: TARJETA | S12: 0 | T12: 0 | U12: 556.2666667 | V12: 8344 | W12: 333.76 | X12: 584.08 | Y12: 0 | Z12: 917.84 | AA12: 8344 | AB12: 9261.84 | AD12: 0 | AE12: 0 | AF12: 1235.089224 | AG12: 1235.08 | AH12: 0 | AI12: 8026.76 | AK12: 4
A13: 5 | B13: 1 | C13: 1 | D13: GOMEZ RICO LUZ ELENA | G13: 2012-10-01 | H13: REGIDOR | P13: 15 | Q13: TARJETA | S13: 0 | T13: 0 | U13: 556.2666667 | V13: 8344 | W13: 333.76 | X13: 584.08 | Y13: 0 | Z13: 917.84 | AA13: 8344 | AB13: 9261.84 | AD13: 0 | AE13: 0 | AF13: 1235.089224 | AG13: 1235.08 | AH13: 0 | AI13: 8026.76 | AK13: 5
A14: 6 | B14: 1 | C14: 1 | D14: GUTIERREZ GARCIA GERARDO | G14: 2012-10-01 | H14: REGIDOR | P14: 15 | Q14: TARJETA | S14: 0 | T14: 0 | U14: 556.2666667 | V14: 8344 | W14: 333.76 | X14: 584.08 | Y14: 0 | Z14: 917.84 | AA14: 8344 | AB14: 9261.84 | AE14: 0 | AF14: 1235.089224 | AG14: 1235.08 | AH14: 0 | AI14: 8026.76 | AK14: 6
A15: 7 | B15: 1 | C15: 1 | D15: ROBLEDO ORTIZ EDGAR ANTONIO | G15: 2012-10-01 | H15: REGIDOR | P15: 15 | Q15: TARJETA | S15: 0 | T15: 0 | U15: 556.2666667 | V15: 8344 | W15: 333.76 | X15: 584.08 | Y15: 0 | Z15: 917.84 | AA15: 8344 | AB15: 9261.84 | AF15: 1235.089224 | AG15: 1235.08 | AH15: 0 | AI15: 8026.76 | AK15: 7
A16: 8 | B16: 1 | C16: 1 | D16: SIERRA ROMERO DOLORES EDITH | G16: 2012-10-01 | H16: REGIDOR | P16: 15 | Q16: TARJETA | S16: 0 | T16: 0 | U16: 556.2666667 | V16: 8344 | W16: 333.76 | X16: 584.08 | Y16: 0 | Z16: 917.84 | AA16: 8344 | AB16: 9261.84 | AF16: 1235.089224 | AG16: 1235.08 | AH16: 0 | AI16: 8026.76 | AK16: 8
A17: 9 | B17: 1 | C17: 1 | D17: VELEZ FREGOSO LUIS MANUEL | G17: 2012-10-01 | H17: REGIDOR | P17: 15 | Q17: TARJETA | S17: 0 | T17: 0 | U17: 556.2666667 | V17: 8344 | W17: 333.76 | X17: 584.08 | Y17: 0 | Z17: 917.84 | AA17: 8344 | AB17: 9261.84 | AD17: 0 | AF17: 1235.089224 | AG17: 1235.08 | AH17: 0 | AI17: 8026.76 | AK17: 9
D18: SALA DE REGIDORES | V18: =SUM(V9:V17) -> 75096 | W18: =SUM(W9:W17) -> 3003.84 | X18: 5256.72 | Y18: 0 | Z18: 8260.56 | AA18: 75096 | AB18: 83356.56 | AC18: 0 | AD18: 0 | AE18: 0 | AF18: 11115.80302 | AG18: 11115.72 | AH18: 0 | AI18: 72240.84 | AJ18: 0
D20: PRESIDENCIA MUNICIPAL
A21: 10 | D21: RON RAMOS EDUARDO | H21: PRESIDENTE MUNICIPAL | P21: 15 | Q21: TARJETA | S21: 0 | T21: 0 | U21: =29592/30 -> 986.4 | V21: =TRUNC(U21*P21,2) -> 14796 | W21: =TRUNC(U21*P21*0.04,2) -> 591.84 | X21: =TRUNC(U21*0.07*P21,2) -> 1035.72 | Y21: =S21 -> 0 | Z21: =TRUNC(X21+W21+(IF(Y21>519,519,Y21))+IF(R21=0,0,R21*U21),2) -> 1627.56 | AA21: =TRUNC((IF(R21=0,P21*U21,(P21-R21)*U21))+(IF(Y21<519,0,Y21-519)),2)+T21 -> 14796 | AB21: =Z21+AA21 -> 16423.56 | AD21: 0 | AE21: 0 | AF21: =IF(U21>0.01,(AA21-VLOOKUP(AA21,quincenal,1))*VLOOKUP(AA21,quincenal,3)+VLOOKUP(AA21,quincenal,2)-VLOOKUP(AA21,subquincenal,2),0) -> 2711.331408 | AG21: =TRUNC(IF(AF21>0.01,AF21,0),2) -> 2711.33 | AH21: =TRUNC(IF(AF21<0.01,-AF21,0),2) -> 0 | AI21: =AB21-AD21-AE21-AG21+AH21 -> 13712.23 | AK21: 10
A22: 11 | D22: BAROCIO FIGUEROA ANTONIO | E22: FEPM871023ND1 | F22: FEPM871023MJCRRR07 | H22: SECRETARIO PARTICULAR | P22: 15 | Q22: TARJETA | S22: 0 | T22: 0 | U22: =12653/30 -> 421.7666667 | V22: =TRUNC(U22*P22,2) -> 6326.5 | W22: =TRUNC(U22*P22*0.04,2) -> 253.06 | X22: =TRUNC(U22*0.07*P22,2) -> 442.85 | Y22: =S22 -> 0 | Z22: =TRUNC(X22+W22+(IF(Y22>519,519,Y22))+IF(R22=0,0,R22*U22),2) -> 695.91 | AA22: =TRUNC((IF(R22=0,P22*U22,(P22-R22)*U22))+(IF(Y22<519,0,Y22-519)),2)+T22 -> 6326.5 | AB22: =Z22+AA22 -> 7022.41 | AE22: 0 | AF22: =IF(U22>0.01,(AA22-VLOOKUP(AA22,quincenal,1))*VLOOKUP(AA22,quincenal,3)+VLOOKUP(AA22,quincenal,2)-VLOOKUP(AA22,subquincenal,2),0) -> 804.151224 | AG22: =TRUNC(IF(AF22>0.01,AF22,0),2) -> 804.15 | AH22: =TRUNC(IF(AF22<0.01,-AF22,0),2) -> 0 | AI22: =AB22-AD22-AE22-AG22+AH22 -> 6218.26 | AK22: 11
A23: 12 | D23: BECERRA GONZALEZ MARISOL | E23: FEPM871023ND1 | F23: FEPM871023MJCRRR07 | H23: SECRETARIA | P23: 15 | Q23: TARJETA | S23: 0 | T23: 0 | U23: =8121/30 -> 270.7 | V23: =TRUNC(U23*P23,2) -> 4060.5 | W23: =TRUNC(U23*P23*0.04,2) -> 162.42 | X23: =TRUNC(U23*0.07*P23,2) -> 284.23 | Y23: =S23 -> 0 | Z23: =TRUNC(X23+W23+(IF(Y23>519,519,Y23))+IF(R23=0,0,R23*U23),2) -> 446.65 | AA23: =TRUNC((IF(R23=0,P23*U23,(P23-R23)*U23))+(IF(Y23<519,0,Y23-519)),2)+T23 -> 4060.5 | AB23: =Z23+AA23 -> 4507.15 | AE23: 0 | AF23: =IF(U23>0.01,(AA23-VLOOKUP(AA23,quincenal,1))*VLOOKUP(AA23,quincenal,3)+VLOOKUP(AA23,quincenal,2)-VLOOKUP(AA23,subquincenal,2),0) -> 358.7684 | AG23: =TRUNC(IF(AF23>0.01,AF23,0),2) -> 358.76 | AH23: =TRUNC(IF(AF23<0.01,-AF23,0),2) -> 0 | AI23: =AB23-AD23-AE23-AG23+AH23 -> 4148.39 | AK23: 12
D24: PRESIDENCIA MUNICIPAL | V24: =SUM(V21:V23) -> 25183 | W24: =SUM(W21:W23) -> 1007.32 | X24: 1762.8 | Y24: 0 | Z24: 2770.12 | AA24: 25183 | AB24: 27953.12 | AC24: 0 | AD24: 0 | AE24: 0 | AF24: 3874.251032 | AG24: 3874.24 | AH24: 0 | AI24: 24078.88
D26: SECRETARIA GENERAL Y SINDICATURA
A27: 13 | B27: 1 | C27: 5 | D27: FREGOSO BARBOZA MARTIN DANIEL | H27: SINDICO MUNICIPAL | P27: 15 | Q27: TARJETA | S27: 0 | T27: 0 | U27: =21439/30 -> 714.6333333 | V27: =TRUNC(U27*P27,2) -> 10719.5 | W27: =TRUNC(U27*P27*0.04,2) -> 428.78 | X27: =TRUNC(U27*0.07*P27,2) -> 750.36 | Y27: =S27 -> 0 | Z27: =TRUNC(X27+W27+(IF(Y27>519,519,Y27))+IF(R27=0,0,R27*U27),2) -> 1179.14 | AA27: =TRUNC((IF(R27=0,P27*U27,(P27-R27)*U27))+(IF(Y27<519,0,Y27-519)),2)+T27 -> 10719.5 | AB27: =Z27+AA27 -> 11898.64 | AD27: 0 | AE27: 0 | AF27: =IF(U27>0.01,(AA27-VLOOKUP(AA27,quincenal,1))*VLOOKUP(AA27,quincenal,3)+VLOOKUP(AA27,quincenal,2)-VLOOKUP(AA27,subquincenal,2),0) -> 1752.538608 | AG27: =TRUNC(IF(AF27>0.01,AF27,0),2) -> 1752.53 | AH27: =TRUNC(IF(AF27<0.01,-AF27,0),2) -> 0 | AI27: =AB27-AD27-AE27-AG27+AH27 -> 10146.11 | AK27: 14
A28: 14 | D28: MATA COVARRUBIAS ALAN MARCOS | H28: SECRETARIO GENERAL | P28: 15 | Q28: TARJETA | S28: 0 | T28: 0 | U28: =19266/30 -> 642.2 | V28: =TRUNC(U28*P28,2) -> 9633 | W28: =TRUNC(U28*P28*0.04,2) -> 385.32 | X28: =TRUNC(U28*0.07*P28,2) -> 674.31 | Y28: =S28 -> 0 | Z28: =TRUNC(X28+W28+(IF(Y28>519,519,Y28))+IF(R28=0,0,R28*U28),2) -> 1059.63 | AA28: =TRUNC((IF(R28=0,P28*U28,(P28-R28)*U28))+(IF(Y28<519,0,Y28-519)),2)+T28 -> 9633 | AB28: =Z28+AA28 -> 10692.63 | AD28: 0 | AE28: 0 | AF28: =IF(U28>0.01,(AA28-VLOOKUP(AA28,quincenal,1))*VLOOKUP(AA28,quincenal,3)+VLOOKUP(AA28,quincenal,2)-VLOOKUP(AA28,subquincenal,2),0) -> 1510.419624 | AG28: =TRUNC(IF(AF28>0.01,AF28,0),2) -> 1510.41 | AH28: =TRUNC(IF(AF28<0.01,-AF28,0),2) -> 0 | AI28: =AB28-AD28-AE28-AG28+AH28 -> 9182.22
A29: 15 | D29: IBARRA FLORES MILAGROS SARAHI | H29: SECRETARIA EN SINDICATURA | P29: 15 | Q29: TARJETA | S29: 0 | T29: 0 | U29: 113.977 | V29: =TRUNC(U29*P29,2) -> 1709.65 | W29: =TRUNC(U29*P29*0.04,2) -> 68.38 | X29: =TRUNC(U29*0.07*P29,2) -> 119.67 | Y29: =S29 -> 0 | Z29: =TRUNC(X29+W29+(IF(Y29>519,519,Y29))+IF(R29=0,0,R29*U29),2) -> 188.05 | AA29: =TRUNC((IF(R29=0,P29*U29,(P29-R29)*U29))+(IF(Y29<519,0,Y29-519)),2)+T29 -> 1709.65 | AB29: =Z29+AA29 -> 1897.7 | AE29: 0 | AF29: =IF(U29>0.01,(AA29-VLOOKUP(AA29,quincenal,1))*VLOOKUP(AA29,quincenal,3)+VLOOKUP(AA29,quincenal,2)-VLOOKUP(AA29,subquincenal,2),0) -> -102.30024 | AG29: =TRUNC(IF(AF29>0.01,AF29,0),2) -> 0 | AH29: =TRUNC(IF(AF29<0.01,-AF29,0),2) -> 102.3 | AI29: =AB29-AD29-AE29-AG29+AH29 -> 2000
A30: 16 | D30: REYNAGA LOPEZ NAHSDHELLY ALEJANDRA | H30: AUXILIAR JURIDICO | P30: 15 | Q30: TARJETA | S30: 0 | T30: 0 | U30: =8104/30 -> 270.1333333 | V30: =TRUNC(U30*P30,2) -> 4052 | W30: =TRUNC(U30*P30*0.04,2) -> 162.08 | X30: =TRUNC(U30*0.07*P30,2) -> 283.64 | Y30: =S30 -> 0 | Z30: =TRUNC(X30+W30+(IF(Y30>519,519,Y30))+IF(R30=0,0,R30*U30),2) -> 445.72 | AA30: =TRUNC((IF(R30=0,P30*U30,(P30-R30)*U30))+(IF(Y30<519,0,Y30-519)),2)+T30 -> 4052 | AB30: =Z30+AA30 -> 4497.72 | AE30: 0 | AF30: =IF(U30>0.01,(AA30-VLOOKUP(AA30,quincenal,1))*VLOOKUP(AA30,quincenal,3)+VLOOKUP(AA30,quincenal,2)-VLOOKUP(AA30,subquincenal,2),0) -> 357.4084 | AG30: =TRUNC(IF(AF30>0.01,AF30,0),2) -> 357.4 | AH30: =TRUNC(IF(AF30<0.01,-AF30,0),2) -> 0 | AI30: =AB30-AD30-AE30-AG30+AH30 -> 4140.32 | AK30: 16
A31: 17 | D31: CARDENAS GUEVARA JORGE RAFAEL | H31: AUXILIAR ADMINISTRATIVO | P31: 15 | Q31: TARJETA | S31: 0 | T31: 0 | U31: =5714/30 -> 190.4666667 | V31: =TRUNC(U31*P31,2) -> 2857 | W31: =TRUNC(U31*P31*0.04,2) -> 114.28 | X31: =TRUNC(U31*0.07*P31,2) -> 199.99 | Y31: =S31 -> 0 | Z31: =TRUNC(X31+W31+(IF(Y31>519,519,Y31))+IF(R31=0,0,R31*U31),2) -> 314.27 | AA31: =TRUNC((IF(R31=0,P31*U31,(P31-R31)*U31))+(IF(Y31<519,0,Y31-519)),2)+T31 -> 2857 | AB31: =Z31+AA31 -> 3171.27 | AE31: 0 | AF31: =IF(U31>0.01,(AA31-VLOOKUP(AA31,quincenal,1))*VLOOKUP(AA31,quincenal,3)+VLOOKUP(AA31,quincenal,2)-VLOOKUP(AA31,subquincenal,2),0) -> 61.408512 | AG31: =TRUNC(IF(AF31>0.01,AF31,0),2) -> 61.4 | AH31: =TRUNC(IF(AF31<0.01,-AF31,0),2) -> 0 | AI31: =AB31-AD31-AE31-AG31+AH31 -> 3109.87 | AK31: 17
D32: SECRETARIA GENERAL Y SINDICATURA | V32: =SUM(V27:V31) -> 28971.15 | W32: =SUM(W27:W31) -> 1158.84 | X32: 2027.97 | Y32: 0 | Z32: 3186.81 | AA32: 28971.15 | AB32: 32157.96 | AC32: 0 | AD32: 0 | AE32: 0 | AF32: =SUM(AF27:AF31) -> 3579.474904 | AG32: 3681.74 | AH32: 102.3 | AI32: 28578.52
D34: OFICIALIA MAYOR ADMINISTRATIVA
A35: 18 | D35: ALDAZ VELEZ LORENZO MIGUEL | H35: OFICIAL MAYOR | P35: 15 | Q35: TARJETA | S35: 0 | T35: 0 | U35: =15321/30 -> 510.7 | V35: =TRUNC(U35*P35,2) -> 7660.5 | W35: =TRUNC(U35*P35*0.04,2) -> 306.42 | X35: =TRUNC(U35*0.07*P35,2) -> 536.23 | Y35: =S35 -> 0 | Z35: =TRUNC(X35+W35+(IF(Y35>519,519,Y35))+IF(R35=0,0,R35*U35),2) -> 842.65 | AA35: =TRUNC((IF(R35=0,P35*U35,(P35-R35)*U35))+(IF(Y35<519,0,Y35-519)),2)+T35 -> 7660.5 | AB35: =Z35+AA35 -> 8503.15 | AD35: 0 | AE35: 0 | AF35: =IF(U35>0.01,(AA35-VLOOKUP(AA35,quincenal,1))*VLOOKUP(AA35,quincenal,3)+VLOOKUP(AA35,quincenal,2)-VLOOKUP(AA35,subquincenal,2),0) -> 1089.093624 | AG35: =TRUNC(IF(AF35>0.01,AF35,0),2) -> 1089.09 | AH35: =TRUNC(IF(AF35<0.01,-AF35,0),2) -> 0 | AI35: =AB35-AD35-AE35-AG35+AH35 -> 7414.06 | AK35: 18
A36: 19 | D36: VENTURA PEREZ HERLINDA AURORA | E36: VEPH840722PR4 | F36: VEPH840722MJCNRR04 | H36: SECRETARIA | P36: 15 | Q36: TARJETA | S36: 0 | T36: 0 | U36: =6356/30 -> 211.8666667 | V36: =TRUNC(U36*P36,2) -> 3178 | W36: =TRUNC(U36*P36*0.04,2) -> 127.12 | X36: =TRUNC(U36*0.07*P36,2) -> 222.46 | Y36: 0 | Z36: =TRUNC(X36+W36+(IF(Y36>519,519,Y36))+IF(R36=0,0,R36*U36),2) -> 349.58 | AA36: =TRUNC((IF(R36=0,P36*U36,(P36-R36)*U36))+(IF(Y36<519,0,Y36-519)),2)+T36 -> 3178 | AB36: 3527.58 | AD36: 0 | AE36: 0 | AF36: =IF(U36>0.01,(AA36-VLOOKUP(AA36,quincenal,1))*VLOOKUP(AA36,quincenal,3)+VLOOKUP(AA36,quincenal,2)-VLOOKUP(AA36,subquincenal,2),0) -> 116.583312 | AG36: 116.58 | AH36: 0 | AI36: 3411 | AK36: 19
D37: OFICIALIA MAYOR ADMINISTRATIVA | V37: =SUM(V35:V36) -> 10838.5 | W37: =SUM(W35:W36) -> 433.54 | X37: 758.69 | Y37: 0 | Z37: 1192.23 | AA37: 10838.5 | AB37: 12030.73 | AC37: 0 | AD37: 0 | AE37: 0 | AF37: 1205.676936 | AG37: 1205.67 | AH37: 0 | AI37: 10825.06 | AK37: 20
D39: DEPARTAMENTO JURIDICO
A40: 20 | B40: 1 | C40: 7 | D40: FREGOSO MEDRANO CARLOS ALEJANDRO | H40: DIRECTOR JURIDICO | P40: 15 | Q40: TARJETA | S40: 0 | T40: 0 | U40: =20774/30 -> 692.4666667 | V40: =TRUNC(U40*P40,2) -> 10387 | W40: =TRUNC(U40*P40*0.04,2) -> 415.48 | X40: =TRUNC(U40*0.07*P40,2) -> 727.09 | Y40: =S40 -> 0 | Z40: =TRUNC(X40+W40+(IF(Y40>519,519,Y40))+IF(R40=0,0,R40*U40),2) -> 1142.57 | AA40: =TRUNC((IF(R40=0,P40*U40,(P40-R40)*U40))+(IF(Y40<519,0,Y40-519)),2)+T40 -> 10387 | AB40: =Z40+AA40 -> 11529.57 | AD40: 0 | AE40: 0 | AF40: =IF(U40>0.01,(AA40-VLOOKUP(AA40,quincenal,1))*VLOOKUP(AA40,quincenal,3)+VLOOKUP(AA40,quincenal,2)-VLOOKUP(AA40,subquincenal,2),0) -> 1674.334608 | AG40: =TRUNC(IF(AF40>0.01,AF40,0),2) -> 1674.33 | AH40: =TRUNC(IF(AF40<0.01,-AF40,0),2) -> 0 | AI40: =AB40-AD40-AE40-AG40+AH40 -> 9855.24 | AK40: 22
A41: 21 | D41: CARRILLO MUÑOZ CESAR OMAR | E41: CARH770717 | F41: CARH770717HJCRDG01 | H41: JUEZ MUNICIPAL | P41: 15 | Q41: TARJETA | S41: 0 | T41: 0 | U41: =9593/30 -> 319.7666667 | V41: =TRUNC(U41*P41,2) -> 4796.5 | W41: =TRUNC(U41*P41*0.04,2) -> 191.86 | X41: =TRUNC(U41*0.07*P41,2) -> 335.75 | Y41: =S41 -> 0 | Z41: =TRUNC(X41+W41+(IF(Y41>519,519,Y41))+IF(R41=0,0,R41*U41),2) -> 527.61 | AA41: =TRUNC((IF(R41=0,P41*U41,(P41-R41)*U41))+(IF(Y41<519,0,Y41-519)),2)+T41 -> 4796.5 | AB41: =Z41+AA41 -> 5324.11 | AD41: 0 | AE41: 0 | AF41: =IF(U41>0.01,(AA41-VLOOKUP(AA41,quincenal,1))*VLOOKUP(AA41,quincenal,3)+VLOOKUP(AA41,quincenal,2)-VLOOKUP(AA41,subquincenal,2),0) -> 487.038288 | AG41: =TRUNC(IF(AF41>0.01,AF41,0),2) -> 487.03 | AH41: =TRUNC(IF(AF41<0.01,-AF41,0),2) -> 0 | AI41: =AB41-AD41-AE41-AG41+AH41 -> 4837.08 | AK41: 23
A42: 22 | D42: NAVARRO SEGURA KAREN LIZBETH | E42: CARH770717 | F42: CARH770717HJCRDG01 | H42: SECRETARIA DE JUEZ MUNICIPAL | P42: 15 | Q42: TARJETA | U42: 88.48334 | V42: =TRUNC(U42*P42,2) -> 1327.25 | W42: =TRUNC(U42*P42*0.04,2) -> 53.09 | X42: =TRUNC(U42*0.07*P42,2) -> 92.9 | Y42: =S42 -> 0 | Z42: =TRUNC(X42+W42+(IF(Y42>519,519,Y42))+IF(R42=0,0,R42*U42),2) -> 145.99 | AA42: =TRUNC((IF(R42=0,P42*U42,(P42-R42)*U42))+(IF(Y42<519,0,Y42-519)),2)+T42 -> 1327.25 | AB42: =Z42+AA42 -> 1473.24 | AD42: 500 | AE42: 0 | AF42: =IF(U42>0.01,(AA42-VLOOKUP(AA42,quincenal,1))*VLOOKUP(AA42,quincenal,3)+VLOOKUP(AA42,quincenal,2)-VLOOKUP(AA42,subquincenal,2),0) -> -126.77384 | AG42: =TRUNC(IF(AF42>0.01,AF42,0),2) -> 0 | AH42: =TRUNC(IF(AF42<0.01,-AF42,0),2) -> 126.77 | AI42: =AB42-AD42-AE42-AG42+AH42-0.01 -> 1100 | AK42: 24
D43: DEPARTAMENTO JURIDICO | V43: =SUM(V40:V42) -> 16510.75 | W43: 660.43 | X43: 1155.74 | Y43: 0 | Z43: 1816.17 | AA43: 16510.75 | AB43: 18326.92 | AC43: 0 | AD43: 500 | AE43: 0 | AF43: 2034.599056 | AG43: 2161.36 | AH43: 126.77 | AI43: 15792.32
D45: UNIDAD DE TRANSPARENCIA
A46: 22 | E46: HEEG670312 | F46: HEER670312MJCRNS06 | G46: 2007-01-08 | H46: DIRECTOR DE TRANSPARENCIA | Q46: TARJETA | S46: 0 | T46: 0 | U46: =12653/30 -> 421.7666667 | V46: =TRUNC(U46*P46,2) -> 0 | W46: =TRUNC(U46*P46*0.04,2) -> 0 | X46: =TRUNC(U46*0.07*P46,2) -> 0 | Y46: =S46 -> 0 | Z46: =TRUNC(X46+W46+(IF(Y46>519,519,Y46))+IF(R46=0,0,R46*U46),2) -> 0 | AA46: =TRUNC((IF(R46=0,P46*U46,(P46-R46)*U46))+(IF(Y46<519,0,Y46-519)),2)+T46 -> 0 | AB46: =Z46+AA46 -> 0 | AE46: 0 | AF46: =IF(U46>0.01,(AA46-VLOOKUP(AA46,quincenal,1))*VLOOKUP(AA46,quincenal,3)+VLOOKUP(AA46,quincenal,2)-VLOOKUP(AA46,subquincenal,2),0) ->  | AK46: 25
A47: 23 | D47: REYES MONTERO HECTOR CARLOS | E47: PAGM780607 | F47: PAGM780607MJCLRR03 | H47: AUXILIAR DE TRANSPARENCIA | P47: 15 | Q47: TARJETA | S47: 0 | T47: 0 | U47: =6795/30 -> 226.5 | V47: =TRUNC(U47*P47,2) -> 3397.5 | W47: =TRUNC(U47*P47*0.04,2) -> 135.9 | X47: =TRUNC(U47*0.07*P47,2) -> 237.82 | Y47: =S47 -> 0 | Z47: =TRUNC(X47+W47+(IF(Y47>519,519,Y47))+IF(R47=0,0,R47*U47),2) -> 373.72 | AA47: =TRUNC((IF(R47=0,P47*U47,(P47-R47)*U47))+(IF(Y47<519,0,Y47-519)),2)+T47 -> 3397.5 | AB47: =Z47+AA47 -> 3771.22 | AE47: 0 | AF47: =IF(U47>0.01,(AA47-VLOOKUP(AA47,quincenal,1))*VLOOKUP(AA47,quincenal,3)+VLOOKUP(AA47,quincenal,2)-VLOOKUP(AA47,subquincenal,2),0) -> 140.464912 | AG47: =TRUNC(IF(AF47>0.01,AF47,0),2) -> 140.46 | AH47: =TRUNC(IF(AF47<0.01,-AF47,0),2) -> 0 | AI47: =AB47-AD47-AE47-AG47+AH47 -> 3630.76 | AK47: 26
D48: UNIDAD DE TRANSPARENCIA | V48: =SUM(V46:V47) -> 3397.5 | W48: =SUM(W46:W47) -> 135.9 | X48: 237.82 | Y48: 0 | Z48: 373.72 | AA48: 3397.5 | AB48: 3771.22 | AC48: 0 | AD48: 0 | AE48: 0 | AG48: 140.46 | AH48: 0 | AI48: 3630.76
D50: DIRECCION DE REGISTRO CIVIL
A51: 24 | D51: NAVARRO HERNANDEZ ALMA SAGRARIO | E51: HEEG670312 | F51: HEER670312MJCRNS06 | G51: 2007-01-08 | H51: JEFE OFICIAL DE REGISTRO CIVIL | P51: 15 | Q51: TARJETA | S51: 0 | T51: 0 | U51: 217.7939 | V51: =TRUNC(U51*P51,2) -> 3266.9 | W51: =TRUNC(U51*P51*0.04,2) -> 130.67 | X51: =TRUNC(U51*0.07*P51,2) -> 228.68 | Y51: =S51 -> 0 | Z51: =TRUNC(X51+W51+(IF(Y51>519,519,Y51))+IF(R51=0,0,R51*U51),2) -> 359.35 | AA51: =TRUNC((IF(R51=0,P51*U51,(P51-R51)*U51))+(IF(Y51<519,0,Y51-519)),2)+T51 -> 3266.9 | AB51: =Z51+AA51 -> 3626.25 | AE51: 0 | AF51: =IF(U51>0.01,(AA51-VLOOKUP(AA51,quincenal,1))*VLOOKUP(AA51,quincenal,3)+VLOOKUP(AA51,quincenal,2)-VLOOKUP(AA51,subquincenal,2),0) -> 126.255632 | AG51: =TRUNC(IF(AF51>0.01,AF51,0),2) -> 126.25 | AH51: =TRUNC(IF(AF51<0.01,-AF51,0),2) -> 0 | AI51: =AB51-AD51-AE51-AG51+AH51 -> 3500 | AK51: 27
A52: 25 | E52: PAGM780607 | F52: PAGM780607MJCLRR03 | H52: OFICIAL AUX. DE REGISTRO CIVIL | P52: 0 | Q52: TARJETA | S52: 0 | T52: 0 | U52: =5183/30 -> 172.7666667 | V52: =TRUNC(U52*P52,2) -> 0 | W52: =TRUNC(U52*P52*0.04,2) -> 0 | X52: =TRUNC(U52*0.07*P52,2) -> 0 | Y52: =S52 -> 0 | Z52: =TRUNC(X52+W52+(IF(Y52>519,519,Y52))+IF(R52=0,0,R52*U52),2) -> 0 | AA52: =TRUNC((IF(R52=0,P52*U52,(P52-R52)*U52))+(IF(Y52<519,0,Y52-519)),2)+T52 -> 0 | AB52: =Z52+AA52 -> 0 | AE52: 0 | AF52: =IF(U52>0.01,(AA52-VLOOKUP(AA52,quincenal,1))*VLOOKUP(AA52,quincenal,3)+VLOOKUP(AA52,quincenal,2)-VLOOKUP(AA52,subquincenal,2),0) ->  | AI52: =AB52-AD52-AE52-AG52+AH52 -> 0 | AK52: 28
D53: DIRECCION DE REGISTRO CIVIL | V53: =SUM(V51:V52) -> 3266.9 | W53: =SUM(W51:W52) -> 130.67 | X53: 228.68 | Y53: 0 | Z53: 359.35 | AA53: 3266.9 | AB53: 3626.25 | AC53: 0 | AD53: 0 | AE53: 0 | AG53: 126.25 | AH53: 0 | AI53: 3500
D55: OFICIALIA MAYOR DE CULTURA
A56: 26 | D56: DIAZ PEREZ SAMUEL | E56: MAM620222 | H56: DIRECTOR DE CULTURA Y TURISMO | P56: 15 | Q56: TARJETA | S56: 0 | T56: 0 | U56: =12653/30 -> 421.7666667 | V56: =TRUNC(U56*P56,2) -> 6326.5 | W56: =TRUNC(U56*P56*0.04,2) -> 253.06 | X56: =TRUNC(U56*0.07*P56,2) -> 442.85 | Y56: =S56 -> 0 | Z56: =TRUNC(X56+W56+(IF(Y56>519,519,Y56))+IF(R56=0,0,R56*U56),2) -> 695.91 | AA56: =TRUNC((IF(R56=0,P56*U56,(P56-R56)*U56))+(IF(Y56<519,0,Y56-519)),2)+T56 -> 6326.5 | AB56: =Z56+AA56 -> 7022.41 | AE56: 0 | AF56: =IF(U56>0.01,(AA56-VLOOKUP(AA56,quincenal,1))*VLOOKUP(AA56,quincenal,3)+VLOOKUP(AA56,quincenal,2)-VLOOKUP(AA56,subquincenal,2),0) -> 804.151224 | AG56: =TRUNC(IF(AF56>0.01,AF56,0),2) -> 804.15 | AH56: =TRUNC(IF(AF56<0.01,-AF56,0),2) -> 0 | AI56: =AB56-AD56-AE56-AG56+AH56 -> 6218.26 | AK56: 31
A57: 27 | D57: PARRA RON CARLOS ENRIQUE | E57: PARC480708 | F57: PARC480708HJCRNR08 | G57: 2004-01-01 | H57: CRONISTA | P57: 15 | Q57: TARJETA | S57: 0 | T57: 0 | U57: 295.625 | V57: =TRUNC(U57*P57,2) -> 4434.37 | W57: =TRUNC(U57*P57*0.04,2) -> 177.37 | X57: =TRUNC(U57*0.07*P57,2) -> 310.4 | Y57: =S57 -> 0 | Z57: =TRUNC(X57+W57+(IF(Y57>519,519,Y57))+IF(R57=0,0,R57*U57),2) -> 487.77 | AA57: =TRUNC((IF(R57=0,P57*U57,(P57-R57)*U57))+(IF(Y57<519,0,Y57-519)),2)+T57 -> 4434.37 | AB57: =Z57+AA57 -> 4922.14 | AE57: 0 | AF57: =IF(U57>0.01,(AA57-VLOOKUP(AA57,quincenal,1))*VLOOKUP(AA57,quincenal,3)+VLOOKUP(AA57,quincenal,2)-VLOOKUP(AA57,subquincenal,2),0) -> 422.144592 | AG57: =TRUNC(IF(AF57>0.01,AF57,0),2) -> 422.14 | AH57: =TRUNC(IF(AF57<0.01,-AF57,0),2) -> 0 | AI57: =AB57-AD57-AE57-AG57+AH57 -> 4500 | AK57: 32
A58: 28 | D58: GONZALEZ JUAREZ ALEJANDRA AMANDA | H58: SECRETARIA DE CASA DE LA CULTURA | P58: 15 | Q58: TARJETA | S58: 0 | T58: 0 | U58: =4615/30 -> 153.8333333 | V58: =TRUNC(U58*P58,2) -> 2307.5 | W58: =TRUNC(U58*P58*0.04,2) -> 92.3 | X58: =TRUNC(U58*0.07*P58,2) -> 161.52 | Y58: =S58 -> 0 | Z58: =TRUNC(X58+W58+(IF(Y58>519,519,Y58))+IF(R58=0,0,R58*U58),2) -> 253.82 | AA58: =TRUNC((IF(R58=0,P58*U58,(P58-R58)*U58))+(IF(Y58<519,0,Y58-519)),2)+T58 -> 2307.5 | AB58: =Z58+AA58 -> 2561.32 | AD58: 0 | AF58: =IF(U58>0.01,(AA58-VLOOKUP(AA58,quincenal,1))*VLOOKUP(AA58,quincenal,3)+VLOOKUP(AA58,quincenal,2)-VLOOKUP(AA58,subquincenal,2),0) -> -27.777088 | AG58: 0 | AH58: 27.77 | AI58: =AB58-AD58-AE58-AG58+AH58 -> 2589.09 | AK58: 33
A59: 28 | D59: ARCINIEGA RODRIGUEZ ANTONIO | H59: ENCARGADO DE EQUIPO DE SONIDO | P59: 15 | Q59: TARJETA | S59: 0 | T59: 0 | U59: =8445/30 -> 281.5 | V59: 4222.5 | W59: 168.9 | X59: 295.57 | Y59: 0 | Z59: 464.47 | AA59: 4222.5 | AB59: 4686.97 | AE59: 0 | AF59: =IF(U59>0.01,(AA59-VLOOKUP(AA59,quincenal,1))*VLOOKUP(AA59,quincenal,3)+VLOOKUP(AA59,quincenal,2)-VLOOKUP(AA59,subquincenal,2),0) -> 384.6884 | AG59: 384.68 | AH59: 0 | AI59: 4302.29 | AK59: 37
D60: OFICIALIA MAYOR DE CULTURA | V60: =SUM(V56:V59) -> 17290.87 | W60: =SUM(W56:W59) -> 691.63 | X60: 1210.34 | Y60: 0 | Z60: 1901.97 | AA60: 17290.87 | AB60: 19192.84 | AC60: 0 | AD60: 0 | AE60: 0 | AF60: 1583.207128 | AG60: 1610.97 | AH60: 27.77 | AI60: 17609.64
D62: DEPARTAMENTO DE COMUNICACIÓN SOCIAL
A63: 30 | B63: 1 | C63: 19 | Q63: TARJETA | S63: 0 | T63: 0 | U63: =12653/30 -> 421.7666667 | Y63: =S63 -> 0 | Z63: =TRUNC(X63+W63+(IF(Y63>519,519,Y63))+IF(R63=0,0,R63*U63),2) -> 0 | AA63: =TRUNC((IF(R63=0,P63*U63,(P63-R63)*U63))+(IF(Y63<519,0,Y63-519)),2)+T63 -> 0 | AB63: =Z63+AA63 -> 0 | AF63: =IF(U63>0.01,(AA63-VLOOKUP(AA63,quincenal,1))*VLOOKUP(AA63,quincenal,3)+VLOOKUP(AA63,quincenal,2)-VLOOKUP(AA63,subquincenal,2),0) ->  | AK63: 38
D64: DEPARTAMENTO DE COMUNICACIÓN SOCIAL | V64: =SUM(V63:V63) -> 0 | W64: 0 | X64: 0 | Y64: 0 | Z64: 0 | AA64: 0 | AB64: 0 | AC64: 0 | AD64: 0 | AE64: 0 | AG64: 0 | AH64: 0 | AI64: 0
D66: DIRECCION DE EDUCACION
A67: 30 | D67: MARISCAL MORALES ILIANA PATRICIA | H67: SUBDIRECTORA DE TALLERES DE CAPACITACION | P67: 15 | Q67: TARJETA | S67: 0 | T67: 0 | U67: =6795/30 -> 226.5 | V67: =TRUNC(U67*P67,2) -> 3397.5 | W67: =TRUNC(U67*P67*0.04,2) -> 135.9 | X67: =TRUNC(U67*0.07*P67,2) -> 237.82 | Y67: =S67 -> 0 | Z67: =TRUNC(X67+W67+(IF(Y67>519,519,Y67))+IF(R67=0,0,R67*U67),2) -> 373.72 | AA67: =TRUNC((IF(R67=0,P67*U67,(P67-R67)*U67))+(IF(Y67<519,0,Y67-519)),2)+T67 -> 3397.5 | AB67: =Z67+AA67 -> 3771.22 | AE67: 0 | AF67: =IF(U67>0.01,(AA67-VLOOKUP(AA67,quincenal,1))*VLOOKUP(AA67,quincenal,3)+VLOOKUP(AA67,quincenal,2)-VLOOKUP(AA67,subquincenal,2),0) -> 140.464912 | AG67: =TRUNC(IF(AF67>0.01,AF67,0),2) -> 140.46 | AH67: =TRUNC(IF(AF67<0.01,-AF67,0),2) -> 0 | AI67: =AB67-AD67-AE67-AG67+AH67 -> 3630.76 | AK67: 41
A68: 31 | D68: HERNANDEZ ESPERICUETA EFRAIN | H68: DIRECTOR DE TALLERES DE CAPACITACION | P68: 15 | Q68: TARJETA | S68: 0 | T68: 0 | U68: =8121/30 -> 270.7 | V68: =TRUNC(U68*P68,2) -> 4060.5 | W68: =TRUNC(U68*P68*0.04,2) -> 162.42 | X68: =TRUNC(U68*0.07*P68,2) -> 284.23 | Y68: =S68 -> 0 | Z68: =TRUNC(X68+W68+(IF(Y68>519,519,Y68))+IF(R68=0,0,R68*U68),2) -> 446.65 | AA68: =TRUNC((IF(R68=0,P68*U68,(P68-R68)*U68))+(IF(Y68<519,0,Y68-519)),2)+T68 -> 4060.5 | AB68: =Z68+AA68 -> 4507.15 | AE68: 0 | AF68: =IF(U68>0.01,(AA68-VLOOKUP(AA68,quincenal,1))*VLOOKUP(AA68,quincenal,3)+VLOOKUP(AA68,quincenal,2)-VLOOKUP(AA68,subquincenal,2),0) -> 358.7684 | AG68: =TRUNC(IF(AF68>0.01,AF68,0),2) -> 358.76 | AH68: =TRUNC(IF(AF68<0.01,-AF68,0),2) -> 0 | AI68: =AB68-AD68-AE68-AG68+AH68 -> 4148.39 | AK68: 42
A69: 32 | D69: MADRID ZAINES DELIA CAROLINA | H69: SECRETARIA DE DIRECTOR DE EDUCACION | P69: 15 | Q69: TARJETA | S69: 0 | T69: 0 | U69: =5714/30 -> 190.4666667 | V69: =TRUNC(U69*P69,2) -> 2857 | W69: =TRUNC(U69*P69*0.04,2) -> 114.28 | X69: =TRUNC(U69*0.07*P69,2) -> 199.99 | Y69: =S69 -> 0 | Z69: =TRUNC(X69+W69+(IF(Y69>519,519,Y69))+IF(R69=0,0,R69*U69),2) -> 314.27 | AA69: =TRUNC((IF(R69=0,P69*U69,(P69-R69)*U69))+(IF(Y69<519,0,Y69-519)),2)+T69 -> 2857 | AB69: =Z69+AA69 -> 3171.27 | AE69: 0 | AF69: =IF(U69>0.01,(AA69-VLOOKUP(AA69,quincenal,1))*VLOOKUP(AA69,quincenal,3)+VLOOKUP(AA69,quincenal,2)-VLOOKUP(AA69,subquincenal,2),0) -> 61.408512 | AG69: =TRUNC(IF(AF69>0.01,AF69,0),2) -> 61.4 | AH69: =TRUNC(IF(AF69<0.01,-AF69,0),2) -> 0 | AI69: =AB69-AD69-AE69-AG69+AH69 -> 3109.87 | AK69: 43
A70: 33 | D70: GAVILANES NAVARRO JOSE RICARDO | H70: CHIOFER CAMION ESTUDIANTES | P70: 15 | Q70: TARJETA | S70: 0 | T70: 0 | U70: 260.287 | V70: =TRUNC(U70*P70,2) -> 3904.3 | W70: =TRUNC(U70*P70*0.04,2) -> 156.17 | X70: =TRUNC(U70*0.07*P70,2) -> 273.3 | Y70: =S70 -> 0 | Z70: =TRUNC(X70+W70+(IF(Y70>519,519,Y70))+IF(R70=0,0,R70*U70),2) -> 429.47 | AA70: =TRUNC((IF(R70=0,P70*U70,(P70-R70)*U70))+(IF(Y70<519,0,Y70-519)),2)+T70 -> 3904.3 | AB70: =Z70+AA70 -> 4333.77 | AE70: 0 | AF70: =IF(U70>0.01,(AA70-VLOOKUP(AA70,quincenal,1))*VLOOKUP(AA70,quincenal,3)+VLOOKUP(AA70,quincenal,2)-VLOOKUP(AA70,subquincenal,2),0) -> 333.7764 | AG70: =TRUNC(IF(AF70>0.01,AF70,0),2) -> 333.77 | AH70: =TRUNC(IF(AF70<0.01,-AF70,0),2) -> 0 | AI70: =AB70-AD70-AE70-AG70+AH70 -> 4000 | AK70: 44
D71: DIRECCION DE EDUCACION | V71: =SUM(V67:V70) -> 14219.3 | W71: =SUM(W67:W70) -> 568.77 | X71: 995.34 | Y71: 0 | Z71: 1564.11 | AA71: 14219.3 | AB71: 15783.41 | AC71: 0 | AD71: 0 | AE71: 0 | AF71: 894.418224 | AG71: 894.39 | AH71: 0 | AI71: 14889.02
D73: DEPARTAMENTO DE PROMOCION Y DESARROLLO ECONOMICO
A74: 34 | D74: RODRIGUEZ ARQUIETA FAUSTO RAFAEL | H74: DIRECTOR | P74: 15 | Q74: TARJETA | S74: 0 | T74: 0 | U74: =14973/30 -> 499.1 | V74: =TRUNC(U74*P74,2) -> 7486.5 | W74: =TRUNC(U74*P74*0.04,2) -> 299.46 | X74: =TRUNC(U74*0.07*P74,2) -> 524.05 | Y74: =S74 -> 0 | Z74: =TRUNC(X74+W74+(IF(Y74>519,519,Y74))+IF(R74=0,0,R74*U74),2) -> 823.51 | AA74: =TRUNC((IF(R74=0,P74*U74,(P74-R74)*U74))+(IF(Y74<519,0,Y74-519)),2)+T74 -> 7486.5 | AB74: =Z74+AA74 -> 8310.01 | AD74: 0 | AE74: 0 | AF74: =IF(U74>0.01,(AA74-VLOOKUP(AA74,quincenal,1))*VLOOKUP(AA74,quincenal,3)+VLOOKUP(AA74,quincenal,2)-VLOOKUP(AA74,subquincenal,2),0) -> 1051.927224 | AG74: =TRUNC(IF(AF74>0.01,AF74,0),2) -> 1051.92 | AH74: =TRUNC(IF(AF74<0.01,-AF74,0),2) -> 0 | AI74: =AB74-AD74-AE74-AG74+AH74 -> 7258.09 | AK74: 45
A75: 35 | H75: DIRECTOR DE PROMOCION ECONOMICA | P75: 0 | Q75: TARJETA | S75: 0 | T75: 0 | U75: =13813/30 -> 460.4333333 | V75: 0 | W75: 0 | X75: 0 | Y75: 0 | Z75: 0 | AA75: 0 | AB75: 0 | AE75: 0 | AG75: 0 | AH75: 0 | AI75: 0 | AK75: 46
A76: 36 | D76: PLASCENCIA GARCIA OSCARI | E76: PAGO721112 | F76: PAGO721112HJCLRS01 | H76: AUXILIAR ADMINISTRATIVO DE PROMOCION ECONOMICA | P76: 15 | Q76: TARJETA | S76: 0 | T76: 0 | U76: =6419/30 -> 213.9666667 | V76: 3209.5 | W76: 128.38 | X76: 224.66 | Y76: 0 | Z76: 353.04 | AA76: 3209.5 | AB76: 3562.54 | AE76: 0 | AF76: 120.010512 | AG76: 120.01 | AH76: =TRUNC(IF(AF76<0.01,-AF76,0),2) -> 0 | AI76: 3442.53 | AK76: 47
A77: 37 | D77: ULLOA MARTINEZ MARCELA GUADALUPE | E77: UOMM730612 | F77: UOMM730612MJCLRR02 | G77: 1998-01-01 | H77: AUXILIAR ADMINISTRATIVO | P77: 15 | Q77: TARJETA | S77: 0 | T77: 0 | U77: =6783/30 -> 226.1 | V77: 3391.5 | W77: 135.66 | X77: 237.4 | Y77: 0 | Z77: 373.06 | AA77: 3391.5 | AB77: 3764.56 | AE77: 0 | AF77: 139.812112 | AG77: 139.81 | AH77: =TRUNC(IF(AF77<0.01,-AF77,0),2) -> 0 | AI77: 3624.75 | AK77: 49
D78: DEPARTAMENTO DE PROMOCION Y DESARROLLO ECONOMICO | V78: =SUM(V74:V77) -> 14087.5 | W78: =SUM(W74:W77) -> 563.5 | X78: 986.11 | Y78: 0 | Z78: 1549.61 | AA78: 14087.5 | AB78: 15637.11 | AC78: 0 | AD78: 0 | AE78: 0 | AG78: 1311.74 | AH78: 0 | AI78: 14325.37
D80: OFICINA DE ENLACE RELACIONES EXTERIORES
A81: 38 | D81: GUTIERREZ REYES CAROL | E81: GURC680410 | F81: GURC680410MJCTYR00 | G81: 2001-01-02 | H81: JEFE ADMINISTRADOR | P81: 15 | Q81: TARJETA | S81: 0 | T81: 0 | U81: =11550/30 -> 385 | V81: =TRUNC(U81*P81,2) -> 5775 | W81: =TRUNC(U81*P81*0.04,2) -> 231 | X81: =TRUNC(U81*0.07*P81,2) -> 404.25 | Y81: =S81 -> 0 | Z81: =TRUNC(X81+W81+(IF(Y81>519,519,Y81))+IF(R81=0,0,R81*U81),2) -> 635.25 | AA81: =TRUNC((IF(R81=0,P81*U81,(P81-R81)*U81))+(IF(Y81<519,0,Y81-519)),2)+T81 -> 5775 | AB81: =Z81+AA81 -> 6410.25 | AE81: 0 | AF81: =IF(U81>0.01,(AA81-VLOOKUP(AA81,quincenal,1))*VLOOKUP(AA81,quincenal,3)+VLOOKUP(AA81,quincenal,2)-VLOOKUP(AA81,subquincenal,2),0) -> 686.350824 | AG81: =TRUNC(IF(AF81>0.01,AF81,0),2) -> 686.35 | AH81: =TRUNC(IF(AF81<0.01,-AF81,0),2) -> 0 | AI81: =AB81-AD81-AE81-AG81+AH81 -> 5723.9 | AK81: 51
A82: 39 | D82: FREGOSO HURTADO ALEJANDRA | E82: FEHA831218 | F82: FEHA831218MJCRRL07 | G82: 2007-04-10 | H82: AUX. ADMINISTRATIVO | P82: 15 | Q82: TARJETA | S82: 0 | T82: 0 | U82: =6609/30 -> 220.3 | V82: =TRUNC(U82*P82,2) -> 3304.5 | W82: =TRUNC(U82*P82*0.04,2) -> 132.18 | X82: =TRUNC(U82*0.07*P82,2) -> 231.31 | Y82: =S82 -> 0 | Z82: =TRUNC(X82+W82+(IF(Y82>519,519,Y82))+IF(R82=0,0,R82*U82),2) -> 363.49 | AA82: =TRUNC((IF(R82=0,P82*U82,(P82-R82)*U82))+(IF(Y82<519,0,Y82-519)),2)+T82 -> 3304.5 | AB82: =Z82+AA82 -> 3667.99 | AE82: 0 | AF82: =IF(U82>0.01,(AA82-VLOOKUP(AA82,quincenal,1))*VLOOKUP(AA82,quincenal,3)+VLOOKUP(AA82,quincenal,2)-VLOOKUP(AA82,subquincenal,2),0) -> 130.346512 | AG82: =TRUNC(IF(AF82>0.01,AF82,0),2) -> 130.34 | AH82: =TRUNC(IF(AF82<0.01,-AF82,0),2) -> 0 | AI82: =AB82-AD82-AE82-AG82+AH82 -> 3537.65 | AK82: 52
A83: =A82+1 -> 40 | D83: LOPEZ MARTINEZ YVETTE AMALIA MARGARITA | E83: LOMY681017 | F83: LOMY681017MJCPRV08 | G83: 2001-01-01 | H83: SUPERVISOR | P83: 15 | Q83: TARJETA | S83: 0 | T83: 0 | U83: =6609/30 -> 220.3 | V83: =TRUNC(U83*P83,2) -> 3304.5 | W83: =TRUNC(U83*P83*0.04,2) -> 132.18 | X83: =TRUNC(U83*0.07*P83,2) -> 231.31 | Y83: =S83 -> 0 | Z83: =TRUNC(X83+W83+(IF(Y83>519,519,Y83))+IF(R83=0,0,R83*U83),2) -> 363.49 | AA83: =TRUNC((IF(R83=0,P83*U83,(P83-R83)*U83))+(IF(Y83<519,0,Y83-519)),2)+T83 -> 3304.5 | AB83: =Z83+AA83 -> 3667.99 | AE83: 0 | AF83: =IF(U83>0.01,(AA83-VLOOKUP(AA83,quincenal,1))*VLOOKUP(AA83,quincenal,3)+VLOOKUP(AA83,quincenal,2)-VLOOKUP(AA83,subquincenal,2),0) -> 130.346512 | AG83: =TRUNC(IF(AF83>0.01,AF83,0),2) -> 130.34 | AH83: =TRUNC(IF(AF83<0.01,-AF83,0),2) -> 0 | AI83: =AB83-AD83-AE83-AG83+AH83 -> 3537.65 | AK83: 53
A84: 41 | D84: ESTRADA GOMEZ JUAN CARLOS | E84: EAGJ510220NR1 | F84: EAGJ510220HJCSMN09 | H84: MENSAJERO | P84: 15 | Q84: TARJETA | S84: 0 | T84: 0 | U84: =6762/30 -> 225.4 | V84: =TRUNC(U84*P84,2) -> 3381 | W84: =TRUNC(U84*P84*0.04,2) -> 135.24 | X84: =TRUNC(U84*0.07*P84,2) -> 236.67 | Y84: =S84 -> 0 | Z84: =TRUNC(X84+W84+(IF(Y84>519,519,Y84))+IF(R84=0,0,R84*U84),2) -> 371.91 | AA84: =TRUNC((IF(R84=0,P84*U84,(P84-R84)*U84))+(IF(Y84<519,0,Y84-519)),2)+T84 -> 3381 | AB84: =Z84+AA84 -> 3752.91 | AD84: 0 | AE84: 0 | AF84: =IF(U84>0.01,(AA84-VLOOKUP(AA84,quincenal,1))*VLOOKUP(AA84,quincenal,3)+VLOOKUP(AA84,quincenal,2)-VLOOKUP(AA84,subquincenal,2),0) -> 138.669712 | AG84: =TRUNC(IF(AF84>0.01,AF84,0),2) -> 138.66 | AH84: =TRUNC(IF(AF84<0.01,-AF84,0),2) -> 0 | AI84: =AB84-AD84-AE84-AG84+AH84 -> 3614.25 | AK84: 54
D85: OFICINA DE ENLACE RELACIONES EXTERIORES | V85: =SUM(V81:V84) -> 15765 | W85: =SUM(W81:W84) -> 630.6 | X85: 1103.54 | Y85: 0 | Z85: 1734.14 | AA85: 15765 | AB85: 17499.14 | AC85: 0 | AD85: 0 | AE85: 0 | AF85: 1085.71356 | AG85: 1085.69 | AH85: 0 | AI85: 16413.45
D87: AGENCIAS MUNICIPALES
A88: =A84+1 -> 42 | B88: 2 | C88: 2 | D88: GOMEZ HERNANDEZ FRANCISCO JAVIER | H88: AGENTE MUNICIPAL STA. ROSALIA | P88: 15 | Q88: TARJETA | S88: 0 | T88: 0 | U88: =3158/30 -> 105.2666667 | V88: =TRUNC(U88*P88,2) -> 1579 | W88: =TRUNC(U88*P88*0.04,2) -> 63.16 | X88: =TRUNC(U88*0.07*P88,2) -> 110.53 | Y88: =S88 -> 0 | Z88: =TRUNC(X88+W88+(IF(Y88>519,519,Y88))+IF(R88=0,0,R88*U88),2) -> 173.69 | AA88: =TRUNC((IF(R88=0,P88*U88,(P88-R88)*U88))+(IF(Y88<519,0,Y88-519)),2)+T88 -> 1579 | AB88: =Z88+AA88 -> 1752.69 | AD88: 0 | AE88: 0 | AF88: =IF(U88>0.01,(AA88-VLOOKUP(AA88,quincenal,1))*VLOOKUP(AA88,quincenal,3)+VLOOKUP(AA88,quincenal,2)-VLOOKUP(AA88,subquincenal,2),0) -> -110.66184 | AG88: =TRUNC(IF(AF88>0.01,AF88,0),2) -> 0 | AH88: =TRUNC(IF(AF88<0.01,-AF88,0),2) -> 110.66 | AI88: =AB88-AD88-AE88-AG88+AH88 -> 1863.35 | AK88: 55
A89: =A88+1 -> 43 | B89: 2 | C89: 2 | D89: BERNAL LOPEZ JUAN MANUEL | E89: PALR | H89: AGENTE MUNICIPAL SAN RAFAEL | P89: 15 | Q89: TARJETA | S89: 0 | T89: 0 | U89: =2562/30 -> 85.4 | V89: 1281 | W89: 51.24 | X89: 89.67 | Y89: 0 | Z89: 140.91 | AA89: 1281 | AB89: 1421.91 | AE89: 0 | AF89: -129.73384 | AG89: =TRUNC(IF(AF89>0.01,AF89,0),2) -> 0 | AH89: =TRUNC(IF(AF89<0.01,-AF89,0),2) -> 129.73 | AI89: 1551.64 | AK89: 56
A90: =A89+1 -> 44 | B90: 2 | C90: 2 | D90: GONZALEZ RUIZ JOSE ANGEL | E90: GORA710130M39 | F90: GORA710130HJCNZN08 | H90: AGENTE MUNICIPAL SAN SEBASTIAN | P90: 15 | Q90: TARJETA | S90: 0 | T90: 0 | U90: =2363/30 -> 78.76666667 | V90: 1181.5 | W90: 47.26 | X90: 82.7 | Y90: 0 | Z90: 129.96 | AA90: 1181.5 | AB90: 1311.46 | AD90: 500 | AE90: 0 | AF90: -136.10184 | AG90: =TRUNC(IF(AF90>0.01,AF90,0),2) -> 0 | AH90: =TRUNC(IF(AF90<0.01,-AF90,0),2) -> 136.1 | AI90: 947.56 | AK90: 57
A91: 45 | B91: 2 | C91: 2 | D91: SIERRA LLAMAS JUAN JOSE | E91: SILJ660418 | F91: SILJ660418HJCRLN17 | H91: AGENTE MUNICIPAL DE PUERTA DE PERICOS | P91: 15 | Q91: TARJETA | S91: 0 | T91: 0 | U91: =2761/30 -> 92.03333333 | V91: 1380.5 | W91: 55.22 | X91: 96.63 | Y91: 0 | Z91: 151.85 | AA91: 1380.5 | AB91: 1532.35 | AE91: 0 | AF91: -123.36584 | AG91: =TRUNC(IF(AF91>0.01,AF91,0),2) -> 0 | AH91: =TRUNC(IF(AF91<0.01,-AF91,0),2) -> 123.36 | AI91: 1655.71 | AK91: 58
A92: 46 | D92: NAVARRO AYON RAUL JAIME | H92: AGENTE MUNICIPAL DE LA MAZATA | P92: 15 | Q92: TARJETA | S92: 0 | T92: 0 | U92: =2562/30 -> 85.4 | V92: =TRUNC(U92*P92,2) -> 1281 | W92: =TRUNC(U92*P92*0.04,2) -> 51.24 | X92: =TRUNC(U92*0.07*P92,2) -> 89.67 | Y92: =S92 -> 0 | Z92: =TRUNC(X92+W92+(IF(Y92>519,519,Y92))+IF(R92=0,0,R92*U92),2) -> 140.91 | AA92: =TRUNC((IF(R92=0,P92*U92,(P92-R92)*U92))+(IF(Y92<519,0,Y92-519)),2)+T92 -> 1281 | AB92: =Z92+AA92 -> 1421.91 | AD92: 500 | AE92: 0 | AF92: =IF(U92>0.01,(AA92-VLOOKUP(AA92,quincenal,1))*VLOOKUP(AA92,quincenal,3)+VLOOKUP(AA92,quincenal,2)-VLOOKUP(AA92,subquincenal,2),0) -> -129.73384 | AG92: 0 | AH92: 129.73 | AI92: =AB92-AD92-AE92-AG92+AH92 -> 1051.64 | AK92: 59
A93: 47 | D93: PEREZ LLAMAS SAMUEL | H93: AGENTE MUNICIPAL DE LA QUEBRADA | P93: 15 | Q93: TARJETA | S93: 0 | T93: 0 | U93: =3556/30 -> 118.5333333 | V93: 1778 | W93: 71.12 | X93: 124.46 | Y93: 0 | Z93: 195.58 | AA93: 1778 | AB93: 1973.58 | AE93: 0 | AF93: -85.92584 | AG93: 0 | AH93: 85.92 | AI93: 2059.5 | AK93: 60
A94: 48 | D94: HERNANDEZ BAILON VICENTE | H94: AGENTE MUNICIPAL DE LA EMBOCADA | P94: 0 | Q94: TARJETA | S94: 0 | T94: 0 | U94: =3556/30 -> 118.5333333 | V94: =TRUNC(U94*P94,2) -> 0 | W94: =TRUNC(U94*P94*0.04,2) -> 0 | X94: =TRUNC(U94*0.07*P94,2) -> 0 | Y94: =S94 -> 0 | Z94: =TRUNC(X94+W94+(IF(Y94>519,519,Y94))+IF(R94=0,0,R94*U94),2) -> 0 | AA94: =TRUNC((IF(R94=0,P94*U94,(P94-R94)*U94))+(IF(Y94<519,0,Y94-519)),2)+T94 -> 0 | AB94: =Z94+AA94 -> 0 | AE94: 0 | AF94: =IF(U94>0.01,(AA94-VLOOKUP(AA94,quincenal,1))*VLOOKUP(AA94,quincenal,3)+VLOOKUP(AA94,quincenal,2)-VLOOKUP(AA94,subquincenal,2),0) ->  | AG94: 0 | AH94: 0 | AI94: =AB94-AD94-AE94-AG94+AH94 -> 0
A95: 49 | D95: MURILLO HERNANDEZ MARIANO | H95: AGENTE MUNICIPAL DE LA EMBOCADA | P95: 15 | Q95: TARJETA | S95: 0 | T95: 0 | U95: =3556/30 -> 118.5333333 | V95: 1778 | W95: 71.12 | X95: 124.46 | Y95: 0 | Z95: 195.58 | AA95: 1778 | AB95: 1973.58 | AD95: 500 | AE95: 0 | AF95: -85.92584 | AG95: =TRUNC(IF(AF95>0.01,AF95,0),2) -> 0 | AH95: =TRUNC(IF(AF95<0.01,-AF95,0),2) -> 85.92 | AI95: 1559.5
A96: 50 | D96: LOPEZ SILVA CARLOS DAMIAN | E96: GOHV780710 | F96: GOHV780710HJCMRL00 | G96: 2007-02-01 | H96: CHOFER RECOLECTOR | P96: 15 | Q96: TARJETA | S96: 0 | T96: 0 | U96: =5262/30 -> 175.4 | V96: =TRUNC(U96*P96,2) -> 2631 | W96: =TRUNC(U96*P96*0.04,2) -> 105.24 | X96: =TRUNC(U96*0.07*P96,2) -> 184.17 | Y96: =S96 -> 0 | Z96: =TRUNC(X96+W96+(IF(Y96>519,519,Y96))+IF(R96=0,0,R96*U96),2) -> 289.41 | AA96: =TRUNC((IF(R96=0,P96*U96,(P96-R96)*U96))+(IF(Y96<519,0,Y96-519)),2)+T96 -> 2631 | AB96: =Z96+AA96 -> 2920.41 | AE96: 0 | AF96: =IF(U96>0.01,(AA96-VLOOKUP(AA96,quincenal,1))*VLOOKUP(AA96,quincenal,3)+VLOOKUP(AA96,quincenal,2)-VLOOKUP(AA96,subquincenal,2),0) -> 21.819712 | AG96: =TRUNC(IF(AF96>0.01,AF96,0),2) -> 21.81 | AH96: =TRUNC(IF(AF96<0.01,-AF96,0),2) -> 0 | AI96: =AB96-AD96-AE96-AG96+AH96 -> 2898.6 | AK96: 62
D97: AGENCIAS MUNICIPALES | V97: =SUM(V88:V96) -> 12890 | W97: =SUM(W88:W96) -> 515.6 | X97: 902.29 | Y97: 0 | Z97: 1417.89 | AA97: 12890 | AB97: 14307.89 | AC97: 0 | AD97: 1500 | AE97: 0 | AG97: 21.81 | AH97: 801.42 | AI97: 13587.5
D99: ADMIN ISTRACION DE LA HACIENDA MUNICIPAL
A100: =A96+1 -> 51 | B100: 3 | C100: 1 | D100: CAMARENA GONZALEZ RUBIO MARIO | H100: ENCARGADO DE HACIENDA PUBLICA | P100: 15 | Q100: TARJETA | S100: 0 | T100: 0 | U100: =17378/30 -> 579.2666667 | V100: =TRUNC(U100*P100,2) -> 8689 | W100: =TRUNC(U100*P100*0.04,2) -> 347.56 | X100: =TRUNC(U100*0.07*P100,2) -> 608.23 | Y100: =S100 -> 0 | Z100: =TRUNC(X100+W100+(IF(Y100>519,519,Y100))+IF(R100=0,0,R100*U100),2) -> 955.79 | AA100: =TRUNC((IF(R100=0,P100*U100,(P100-R100)*U100))+(IF(Y100<519,0,Y100-519)),2)+T100 -> 8689 | AB100: =Z100+AA100 -> 9644.79 | AD100: 0 | AE100: 0 | AF100: =IF(U100>0.01,(AA100-VLOOKUP(AA100,quincenal,1))*VLOOKUP(AA100,quincenal,3)+VLOOKUP(AA100,quincenal,2)-VLOOKUP(AA100,subquincenal,2),0) -> 1308.781224 | AG100: =TRUNC(IF(AF100>0.01,AF100,0),2) -> 1308.78 | AH100: =TRUNC(IF(AF100<0.01,-AF100,0),2) -> 0 | AI100: =AB100-AD100-AE100-AG100+AH100 -> 8336.01 | AK100: 63
A101: =A100+1 -> 52 | D101: PEREZ JAIME ARTURO | E101: PEJA600718 | F101: PEXJ600718HJCRXM09 | G101: 2009-01-05 | H101: AUXILIAR CONTABLE | P101: 15 | Q101: TARJETA | S101: 0 | T101: 0 | U101: =10812/30 -> 360.4 | V101: =TRUNC(U101*P101,2) -> 5406 | W101: =TRUNC(U101*P101*0.04,2) -> 216.24 | X101: =TRUNC(U101*0.07*P101,2) -> 378.42 | Y101: =S101 -> 0 | Z101: =TRUNC(X101+W101+(IF(Y101>519,519,Y101))+IF(R101=0,0,R101*U101),2) -> 594.66 | AA101: =TRUNC((IF(R101=0,P101*U101,(P101-R101)*U101))+(IF(Y101<519,0,Y101-519)),2)+T101 -> 5406 | AB101: =Z101+AA101 -> 6000.66 | AE101: 0 | AF101: =IF(U101>0.01,(AA101-VLOOKUP(AA101,quincenal,1))*VLOOKUP(AA101,quincenal,3)+VLOOKUP(AA101,quincenal,2)-VLOOKUP(AA101,subquincenal,2),0) -> 607.532424 | AG101: =TRUNC(IF(AF101>0.01,AF101,0),2) -> 607.53 | AH101: =TRUNC(IF(AF101<0.01,-AF101,0),2) -> 0 | AI101: =AB101-AD101-AE101-AG101+AH101 -> 5393.13 | AK101: 64
A102: =A101+1 -> 53 | D102: VALENZUELA PARRA PERLA PATRICIA | H102: SECRETARIA | P102: 15 | Q102: TARJETA | S102: 0 | T102: 0 | U102: 165.506 | V102: =TRUNC(U102*P102,2) -> 2482.59 | W102: =TRUNC(U102*P102*0.04,2) -> 99.3 | X102: =TRUNC(U102*0.07*P102,2) -> 173.78 | Y102: =S102 -> 0 | Z102: =TRUNC(X102+W102+(IF(Y102>519,519,Y102))+IF(R102=0,0,R102*U102),2) -> 273.08 | AA102: =TRUNC((IF(R102=0,P102*U102,(P102-R102)*U102))+(IF(Y102<519,0,Y102-519)),2)+T102 -> 2482.59 | AB102: =Z102+AA102 -> 2755.67 | AD102: 0 | AE102: 0 | AF102: =IF(U102>0.01,(AA102-VLOOKUP(AA102,quincenal,1))*VLOOKUP(AA102,quincenal,3)+VLOOKUP(AA102,quincenal,2)-VLOOKUP(AA102,subquincenal,2),0) -> 5.672704 | AG102: =TRUNC(IF(AF102>0.01,AF102,0),2) -> 5.67 | AH102: =TRUNC(IF(AF102<0.01,-AF102,0),2) -> 0 | AI102: =AB102-AD102-AE102-AG102+AH102 -> 2750
A103: 54 | D103: ARQUIETA GONZALEZ IRENE MAGALI | H103: ENCARGADO DEL DEPTO DE ADQUISICIONES | P103: 15 | Q103: TARJETA | S103: 0 | T103: 0 | U103: =7195/30 -> 239.8333333 | V103: =TRUNC(U103*P103,2) -> 3597.5 | W103: =TRUNC(U103*P103*0.04,2) -> 143.9 | X103: =TRUNC(U103*0.07*P103,2) -> 251.82 | Y103: =S103 -> 0 | Z103: =TRUNC(X103+W103+(IF(Y103>519,519,Y103))+IF(R103=0,0,R103*U103),2) -> 395.72 | AA103: =TRUNC((IF(R103=0,P103*U103,(P103-R103)*U103))+(IF(Y103<519,0,Y103-519)),2)+T103 -> 3597.5 | AB103: =Z103+AA103 -> 3993.22 | AE103: 0 | AF103: =IF(U103>0.01,(AA103-VLOOKUP(AA103,quincenal,1))*VLOOKUP(AA103,quincenal,3)+VLOOKUP(AA103,quincenal,2)-VLOOKUP(AA103,subquincenal,2),0) -> 179.924912 | AG103: =TRUNC(IF(AF103>0.01,AF103,0),2) -> 179.92 | AH103: =TRUNC(IF(AF103<0.01,-AF103,0),2) -> 0 | AI103: =AB103-AD103-AE103-AG103+AH103 -> 3813.3 | AK103: 65
A104: 55 | D104: GOMEZ ESQUIVEL JULIO ISRAEL | H104: CAPTURISTA EN TESORERIA | P104: 15 | Q104: TARJETA | S104: 0 | T104: 0 | U104: 183.152 | V104: =TRUNC(U104*P104,2) -> 2747.28 | W104: =TRUNC(U104*P104*0.04,2) -> 109.89 | X104: =TRUNC(U104*0.07*P104,2) -> 192.3 | Y104: =S104 -> 0 | Z104: =TRUNC(X104+W104+(IF(Y104>519,519,Y104))+IF(R104=0,0,R104*U104),2) -> 302.19 | AA104: =TRUNC((IF(R104=0,P104*U104,(P104-R104)*U104))+(IF(Y104<519,0,Y104-519)),2)+T104 -> 2747.28 | AB104: =Z104+AA104 -> 3049.47 | AD104: 500 | AE104: 0 | AF104: =IF(U104>0.01,(AA104-VLOOKUP(AA104,quincenal,1))*VLOOKUP(AA104,quincenal,3)+VLOOKUP(AA104,quincenal,2)-VLOOKUP(AA104,subquincenal,2),0) -> 49.470976 | AG104: =TRUNC(IF(AF104>0.01,AF104,0),2) -> 49.47 | AH104: =TRUNC(IF(AF104<0.01,-AF104,0),2) -> 0 | AI104: =AB104-AD104-AE104-AG104+AH104 -> 2500 | AK104: 66
A105: 56 | D105: GALLEGOS PEREZ JOSE FRANCISCO | H105: AUXILIAR CONTABLE | P105: 15 | Q105: TARJETA | S105: 0 | T105: 0 | U105: 183.152 | V105: 2747.28 | W105: 109.89 | X105: 192.3 | Y105: 0 | Z105: 302.19 | AA105: 2747.28 | AB105: 3049.47 | AD105: 500 | AE105: 0 | AF105: =IF(U105>0.01,(AA105-VLOOKUP(AA105,quincenal,1))*VLOOKUP(AA105,quincenal,3)+VLOOKUP(AA105,quincenal,2)-VLOOKUP(AA105,subquincenal,2),0) -> 49.470976 | AG105: 49.47 | AH105: 0 | AI105: 2500
A106: 57 | D106: MARTINEZ PAREDES ANNA VERONICA | E106: MAPA820618 | F106: MAPA820618MJCRRN00 | G106: 2007-01-31 | H106: AUXILIAR CONTABLE | P106: 15 | Q106: TARJETA | S106: 0 | T106: 0 | U106: =9761/30 -> 325.3666667 | V106: =TRUNC(U106*P106,2) -> 4880.5 | W106: =TRUNC(U106*P106*0.04,2) -> 195.22 | X106: =TRUNC(U106*0.07*P106,2) -> 341.63 | Y106: =S106 -> 0 | Z106: =TRUNC(X106+W106+(IF(Y106>519,519,Y106))+IF(R106=0,0,R106*U106),2) -> 536.85 | AA106: =TRUNC((IF(R106=0,P106*U106,(P106-R106)*U106))+(IF(Y106<519,0,Y106-519)),2)+T106 -> 4880.5 | AB106: =Z106+AA106 -> 5417.35 | AE106: 0 | AF106: =IF(U106>0.01,(AA106-VLOOKUP(AA106,quincenal,1))*VLOOKUP(AA106,quincenal,3)+VLOOKUP(AA106,quincenal,2)-VLOOKUP(AA106,subquincenal,2),0) -> 502.091088 | AG106: =TRUNC(IF(AF106>0.01,AF106,0),2) -> 502.09 | AH106: =TRUNC(IF(AF106<0.01,-AF106,0),2) -> 0 | AI106: =AB106-AD106-AE106-AG106+AH106 -> 4915.26 | AK106: 67
D107: ADMIN ISTRACION DE LA HACIENDA MUNICIPAL | V107: =SUM(V100:V106) -> 30550.15 | W107: =SUM(W100:W106) -> 1222 | X107: 2138.48 | Y107: 0 | Z107: 3360.48 | AA107: 30550.15 | AB107: 33910.63 | AC107: 0 | AD107: 1000 | AE107: 0 | AF107: 2702.944304 | AG107: 2702.93 | AH107: 0 | AI107: 30207.7
D109: DEPARTAMENTO DE INGRESOS
A110: =A106+1 -> 58 | B110: 11 | C110: 17 | D110: ARIAS RAMOS MARIA DEL SOCORRO | E110: AIRS650514 | F110: AIRS650514MJCRMC06 | H110: CAJERA | P110: 15 | Q110: TARJETA | S110: 0 | T110: 0 | U110: =6714/30 -> 223.8 | V110: =TRUNC(U110*P110,2) -> 3357 | W110: =TRUNC(U110*P110*0.04,2) -> 134.28 | X110: =TRUNC(U110*0.07*P110,2) -> 234.99 | Y110: =S110 -> 0 | Z110: =TRUNC(X110+W110+(IF(Y110>519,519,Y110))+IF(R110=0,0,R110*U110),2) -> 369.27 | AA110: =TRUNC((IF(R110=0,P110*U110,(P110-R110)*U110))+(IF(Y110<519,0,Y110-519)),2)+T110 -> 3357 | AB110: =Z110+AA110 -> 3726.27 | AE110: 0 | AF110: =IF(U110>0.01,(AA110-VLOOKUP(AA110,quincenal,1))*VLOOKUP(AA110,quincenal,3)+VLOOKUP(AA110,quincenal,2)-VLOOKUP(AA110,subquincenal,2),0) -> 136.058512 | AG110: =TRUNC(IF(AF110>0.01,AF110,0),2) -> 136.05 | AH110: =TRUNC(IF(AF110<0.01,-AF110,0),2) -> 0 | AI110: =AB110-AD110-AE110-AG110+AH110 -> 3590.22 | AK110: 68
A111: =A110+1 -> 59 | D111: CABRALES GONZALEZ JOSE MANUEL | E111: CAGM680912 | F111: CAGM680912HJCBNN06 | G111: 2007-01-01 | H111: RECAUDADOR DE PISO | P111: 15 | Q111: TARJETA | S111: 0 | T111: 0 | U111: =6273/30 -> 209.1 | V111: =TRUNC(U111*P111,2) -> 3136.5 | W111: =TRUNC(U111*P111*0.04,2) -> 125.46 | X111: =TRUNC(U111*0.07*P111,2) -> 219.55 | Y111: =S111 -> 0 | Z111: =TRUNC(X111+W111+(IF(Y111>519,519,Y111))+IF(R111=0,0,R111*U111),2) -> 345.01 | AA111: =TRUNC((IF(R111=0,P111*U111,(P111-R111)*U111))+(IF(Y111<519,0,Y111-519)),2)+T111 -> 3136.5 | AB111: =Z111+AA111 -> 3481.51 | AE111: 0 | AF111: =IF(U111>0.01,(AA111-VLOOKUP(AA111,quincenal,1))*VLOOKUP(AA111,quincenal,3)+VLOOKUP(AA111,quincenal,2)-VLOOKUP(AA111,subquincenal,2),0) -> 112.068112 | AG111: =TRUNC(IF(AF111>0.01,AF111,0),2) -> 112.06 | AH111: =TRUNC(IF(AF111<0.01,-AF111,0),2) -> 0 | AI111: =AB111-AD111-AE111-AG111+AH111 -> 3369.45 | AK111: 69
A112: =A111+1 -> 60 | D112: BERNAL RUIZ LAURO | H112: NOTIFICADOR | P112: 15 | U112: =6338/30 -> 211.2666667 | V112: =TRUNC(U112*P112,2) -> 3169 | W112: =TRUNC(U112*P112*0.04,2) -> 126.76 | X112: =TRUNC(U112*0.07*P112,2) -> 221.83 | Y112: =S112 -> 0 | Z112: =TRUNC(X112+W112+(IF(Y112>519,519,Y112))+IF(R112=0,0,R112*U112),2) -> 348.59 | AA112: =TRUNC((IF(R112=0,P112*U112,(P112-R112)*U112))+(IF(Y112<519,0,Y112-519)),2)+T112 -> 3169 | AB112: =Z112+AA112 -> 3517.59 | AE112: 0 | AF112: =IF(U112>0.01,(AA112-VLOOKUP(AA112,quincenal,1))*VLOOKUP(AA112,quincenal,3)+VLOOKUP(AA112,quincenal,2)-VLOOKUP(AA112,subquincenal,2),0) -> 115.604112 | AG112: =TRUNC(IF(AF112>0.01,AF112,0),2) -> 115.6 | AH112: =TRUNC(IF(AF112<0.01,-AF112,0),2) -> 0 | AI112: =AB112-AD112-AE112-AG112+AH112 -> 3401.99 | AK112: 70
D113: DEPARTAMENTO DE INGRESOS | V113: =SUM(V110:V112) -> 9662.5 | W113: =SUM(W110:W112) -> 386.5 | X113: 676.37 | Y113: 0 | Z113: 1062.87 | AA113: 9662.5 | AB113: 10725.37 | AC113: 0 | AD113: 0 | AE113: 0 | AF113: 363.730736 | AG113: 363.71 | AH113: 0 | AI113: 10361.66
D115: INSTITUTO DE LA MUJER
A116: =A112+1 -> 61 | B116: 3 | C116: 7 | D116: MEDINA FLORES MIRIAM CONCEPCION | E116: LEGJ | H116: ENCARGADA | P116: 15 | Q116: TARJETA | S116: 0 | T116: 0 | U116: =6795/30 -> 226.5 | V116: =TRUNC(U116*P116,2) -> 3397.5 | W116: =TRUNC(U116*P116*0.04,2) -> 135.9 | X116: =TRUNC(U116*0.07*P116,2) -> 237.82 | Y116: =S116 -> 0 | Z116: =TRUNC(X116+W116+(IF(Y116>519,519,Y116))+IF(R116=0,0,R116*U116),2) -> 373.72 | AA116: =TRUNC((IF(R116=0,P116*U116,(P116-R116)*U116))+(IF(Y116<519,0,Y116-519)),2)+T116 -> 3397.5 | AB116: =Z116+AA116 -> 3771.22 | AE116: 0 | AF116: =IF(U116>0.01,(AA116-VLOOKUP(AA116,quincenal,1))*VLOOKUP(AA116,quincenal,3)+VLOOKUP(AA116,quincenal,2)-VLOOKUP(AA116,subquincenal,2),0) -> 140.464912 | AG116: =TRUNC(IF(AF116>0.01,AF116,0),2) -> 140.46 | AH116: =TRUNC(IF(AF116<0.01,-AF116,0),2) -> 0 | AI116: =AB116-AD116-AE116-AG116+AH116 -> 3630.76 | AK116: 72
D117: DEPARTAMENTO DE EGRESOS | V117: =SUM(V116) -> 3397.5 | W117: =SUM(W116) -> 135.9 | X117: 237.82 | Y117: 0 | Z117: 373.72 | AA117: 3397.5 | AB117: 3771.22 | AC117: 0 | AD117: 0 | AE117: 0 | AF117: 140.464912 | AG117: 140.46 | AH117: 0 | AI117: 3630.76
D119: DEPARTAMENTO DE INFORMATICA
A120: =A116+1 -> 62 | B120: 3 | C120: 12 | D120: ILLAN ARIAS CESAR | E120: DIME | H120: DIRECTOR DE IDE SISTEMAS | P120: 15 | Q120: TARJETA | S120: 0 | T120: 0 | U120: =8121/30 -> 270.7 | V120: =TRUNC(U120*P120,2) -> 4060.5 | W120: =TRUNC(U120*P120*0.04,2) -> 162.42 | X120: =TRUNC(U120*0.07*P120,2) -> 284.23 | Y120: =S120 -> 0 | Z120: =TRUNC(X120+W120+(IF(Y120>519,519,Y120))+IF(R120=0,0,R120*U120),2) -> 446.65 | AA120: =TRUNC((IF(R120=0,P120*U120,(P120-R120)*U120))+(IF(Y120<519,0,Y120-519)),2)+T120 -> 4060.5 | AB120: =Z120+AA120 -> 4507.15 | AD120: 0 | AE120: 0 | AF120: =IF(U120>0.01,(AA120-VLOOKUP(AA120,quincenal,1))*VLOOKUP(AA120,quincenal,3)+VLOOKUP(AA120,quincenal,2)-VLOOKUP(AA120,subquincenal,2),0) -> 358.7684 | AG120: =TRUNC(IF(AF120>0.01,AF120,0),2) -> 358.76 | AH120: =TRUNC(IF(AF120<0.01,-AF120,0),2) -> 0 | AI120: =AB120-AD120-AE120-AG120+AH120 -> 4148.39 | AK120: 73
A121: =A120+1 -> 63 | D121: BERNAL ESTRADA EDGAR FERNANDO | H121: DIRECTOR DE IDE INFORMATICA | P121: 15 | Q121: TARJETA | S121: 0 | T121: 0 | U121: =4615/30 -> 153.8333333 | V121: =TRUNC(U121*P121,2) -> 2307.5 | W121: =TRUNC(U121*P121*0.04,2) -> 92.3 | X121: =TRUNC(U121*0.07*P121,2) -> 161.52 | Y121: =S121 -> 0 | Z121: =TRUNC(X121+W121+(IF(Y121>519,519,Y121))+IF(R121=0,0,R121*U121),2) -> 253.82 | AA121: =TRUNC((IF(R121=0,P121*U121,(P121-R121)*U121))+(IF(Y121<519,0,Y121-519)),2)+T121 -> 2307.5 | AB121: =Z121+AA121 -> 2561.32 | AD121: 0 | AF121: =IF(U121>0.01,(AA121-VLOOKUP(AA121,quincenal,1))*VLOOKUP(AA121,quincenal,3)+VLOOKUP(AA121,quincenal,2)-VLOOKUP(AA121,subquincenal,2),0) -> -27.777088 | AG121: =TRUNC(IF(AF121>0.01,AF121,0),2) -> 0 | AH121: =TRUNC(IF(AF121<0.01,-AF121,0),2) -> 27.77 | AI121: =AB121-AD121-AE121-AG121+AH121 -> 2589.09 | AK121: 74
D122: DEPARTAMENTO DE COMPUTO E INFORMATICA | V122: =SUM(V120:V121) -> 6368 | W122: =SUM(W120:W121) -> 254.72 | X122: 445.75 | Y122: 0 | Z122: 700.47 | AA122: 6368 | AB122: 7068.47 | AC122: 0 | AD122: 0 | AE122: 0 | AF122: 330.991312 | AG122: 358.76 | AH122: 27.77 | AI122: 6737.48
D124: DEPARTAMENTO DE IMPUESTO PREDIAL Y CATASTRO
A125: =A121+1 -> 64 | D125: ROBLES VENEGAS OSCAR HUMBERTO | H125: DIRECTOR | P125: 15 | Q125: TARJETA | S125: 0 | T125: 0 | U125: =12653/30 -> 421.7666667 | V125: =TRUNC(U125*P125,2) -> 6326.5 | W125: =TRUNC(U125*P125*0.04,2) -> 253.06 | X125: =TRUNC(U125*0.07*P125,2) -> 442.85 | Y125: =S125 -> 0 | Z125: =TRUNC(X125+W125+(IF(Y125>519,519,Y125))+IF(R125=0,0,R125*U125),2) -> 695.91 | AA125: =TRUNC((IF(R125=0,P125*U125,(P125-R125)*U125))+(IF(Y125<519,0,Y125-519)),2)+T125 -> 6326.5 | AB125: =Z125+AA125 -> 7022.41 | AD125: 0 | AE125: 0 | AF125: =IF(U125>0.01,(AA125-VLOOKUP(AA125,quincenal,1))*VLOOKUP(AA125,quincenal,3)+VLOOKUP(AA125,quincenal,2)-VLOOKUP(AA125,subquincenal,2),0) -> 804.151224 | AG125: =TRUNC(IF(AF125>0.01,AF125,0),2) -> 804.15 | AH125: =TRUNC(IF(AF125<0.01,-AF125,0),2) -> 0 | AI125: =AB125-AD125-AE125-AG125+AH125 -> 6218.26 | AK125: 75
A126: =A125+1 -> 65 | B126: 3 | C126: 13 | D126: CASTELLANOS LOPEZ FRANCISCO JAVIER | E126: CAPB801105 | F126: CAPB801105MJCMRR06 | G126: 2007-01-01 | H126: SUB-DIRECTOR DE CATASTRO | P126: 15 | Q126: TARJETA | S126: 0 | T126: 0 | U126: =8551/30 -> 285.0333333 | V126: =TRUNC(U126*P126,2) -> 4275.5 | W126: =TRUNC(U126*P126*0.04,2) -> 171.02 | X126: =TRUNC(U126*0.07*P126,2) -> 299.28 | Y126: =S126 -> 0 | Z126: =TRUNC(X126+W126+(IF(Y126>519,519,Y126))+IF(R126=0,0,R126*U126),2) -> 470.3 | AA126: =TRUNC((IF(R126=0,P126*U126,(P126-R126)*U126))+(IF(Y126<519,0,Y126-519)),2)+T126 -> 4275.5 | AB126: =Z126+AA126 -> 4745.8 | AE126: 0 | AF126: =IF(U126>0.01,(AA126-VLOOKUP(AA126,quincenal,1))*VLOOKUP(AA126,quincenal,3)+VLOOKUP(AA126,quincenal,2)-VLOOKUP(AA126,subquincenal,2),0) -> 393.675088 | AG126: =TRUNC(IF(AF126>0.01,AF126,0),2) -> 393.67 | AH126: =TRUNC(IF(AF126<0.01,-AF126,0),2) -> 0 | AI126: =AB126-AD126-AE126-AG126+AH126 -> 4352.13 | AK126: 76
A127: =A126+1 -> 66 | D127: GARCIA LOPEZ MARIA ESMERALDA | E127: HEBC | H127: SECRETARIA EN CATASTRO | P127: 15 | Q127: TARJETA | S127: 0 | T127: 0 | U127: =4598/30 -> 153.2666667 | V127: 2299 | W127: 91.96 | X127: 160.93 | Y127: 0 | Z127: 252.89 | AA127: 2299 | AB127: 2551.89 | AF127: =IF(U127>0.01,(AA127-VLOOKUP(AA127,quincenal,1))*VLOOKUP(AA127,quincenal,3)+VLOOKUP(AA127,quincenal,2)-VLOOKUP(AA127,subquincenal,2),0) -> -28.701888 | AG127: =TRUNC(IF(AF127>0.01,AF127,0),2) -> 0 | AH127: =TRUNC(IF(AF127<0.01,-AF127,0),2) -> 28.7 | AI127: 2580.59 | AK127: 77
A128: 67 | D128: ORTEGA CRUZ ERIKA NARCEDALIA | H128: SECRETARIA EN CATASTRO | P128: 15 | Q128: TARJETA | S128: 0 | T128: 0 | U128: =4598/30 -> 153.2666667 | V128: =TRUNC(U128*P128,2) -> 2299 | W128: =TRUNC(U128*P128*0.04,2) -> 91.96 | X128: =TRUNC(U128*0.07*P128,2) -> 160.93 | Y128: =S128 -> 0 | Z128: =TRUNC(X128+W128+(IF(Y128>519,519,Y128))+IF(R128=0,0,R128*U128),2) -> 252.89 | AA128: =TRUNC((IF(R128=0,P128*U128,(P128-R128)*U128))+(IF(Y128<519,0,Y128-519)),2)+T128 -> 2299 | AB128: =Z128+AA128 -> 2551.89 | AE128: 0 | AF128: =IF(U128>0.01,(AA128-VLOOKUP(AA128,quincenal,1))*VLOOKUP(AA128,quincenal,3)+VLOOKUP(AA128,quincenal,2)-VLOOKUP(AA128,subquincenal,2),0) -> -28.701888 | AG128: =TRUNC(IF(AF128>0.01,AF128,0),2) -> 0 | AH128: =TRUNC(IF(AF128<0.01,-AF128,0),2) -> 28.7 | AI128: =AB128-AD128-AE128-AG128+AH128 -> 2580.59 | AK128: 78
D129: DEPARTAMENTO DE IMPUESTO PREDIAL Y CATASTRO | V129: =SUM(V125:V128) -> 15200 | W129: =SUM(W125:W128) -> 608 | X129: 1063.99 | Y129: 0 | Z129: 1671.99 | AA129: 15200 | AB129: 16871.99 | AC129: 0 | AD129: 0 | AE129: 0 | AF129: 1140.422536 | AG129: 1197.82 | AH129: 57.4 | AI129: 15731.57
D131: ADMINISTRACION DE LOS SERVICIOS PUBLICOS MUNICIPALES
A132: =A128+1 -> 68 | D132: MARISCAL MORALES JESUS RICARDO | E132: HEAM740507 | F132: HEAM740507HJCRGN04 | G132: 2008-05-01 | H132: DIRECTOR DE SERVICIOS ´PÚBLICOS MUNICIPALES | P132: 15 | Q132: TARJETA | S132: 0 | T132: 0 | U132: =15321/30 -> 510.7 | V132: =TRUNC(U132*P132,2) -> 7660.5 | W132: =TRUNC(U132*P132*0.04,2) -> 306.42 | X132: =TRUNC(U132*0.07*P132,2) -> 536.23 | Y132: =S132 -> 0 | Z132: =TRUNC(X132+W132+(IF(Y132>519,519,Y132))+IF(R132=0,0,R132*U132),2) -> 842.65 | AA132: =TRUNC((IF(R132=0,P132*U132,(P132-R132)*U132))+(IF(Y132<519,0,Y132-519)),2)+T132 -> 7660.5 | AB132: =Z132+AA132 -> 8503.15 | AD132: 0 | AE132: 0 | AF132: =IF(U132>0.01,(AA132-VLOOKUP(AA132,quincenal,1))*VLOOKUP(AA132,quincenal,3)+VLOOKUP(AA132,quincenal,2)-VLOOKUP(AA132,subquincenal,2),0) -> 1089.093624 | AG132: =TRUNC(IF(AF132>0.01,AF132,0),2) -> 1089.09 | AH132: =TRUNC(IF(AF132<0.01,-AF132,0),2) -> 0 | AI132: =AB132-AD132-AE132-AG132+AH132 -> 7414.06 | AK132: 79
A133: =A132+1 -> 69 | D133: CERVANTES VELAZCO ISAIAS | E133: IAOR | H133: ENCARGADO DE MANTENIMIENTO A VEHICULOS | P133: 15 | Q133: TARJETA | S133: 0 | T133: 0 | U133: =9223/30 -> 307.4333333 | V133: =TRUNC(U133*P133,2) -> 4611.5 | W133: =TRUNC(U133*P133*0.04,2) -> 184.46 | X133: =TRUNC(U133*0.07*P133,2) -> 322.8 | Y133: =S133 -> 0 | Z133: =TRUNC(X133+W133+(IF(Y133>519,519,Y133))+IF(R133=0,0,R133*U133),2) -> 507.26 | AA133: =TRUNC((IF(R133=0,P133*U133,(P133-R133)*U133))+(IF(Y133<519,0,Y133-519)),2)+T133 -> 4611.5 | AB133: =Z133+AA133 -> 5118.76 | AD133: 0 | AE133: 0 | AF133: =IF(U133>0.01,(AA133-VLOOKUP(AA133,quincenal,1))*VLOOKUP(AA133,quincenal,3)+VLOOKUP(AA133,quincenal,2)-VLOOKUP(AA133,subquincenal,2),0) -> 453.886288 | AG133: =TRUNC(IF(AF133>0.01,AF133,0),2) -> 453.88 | AH133: =TRUNC(IF(AF133<0.01,-AF133,0),2) -> 0 | AI133: =AB133-AD133-AE133-AG133+AH133 -> 4664.88 | AK133: 80
A134: =A133+1 -> 70 | D134: HERNANDEZ AGUIRRE JOSE MANUEL | H134: OPERADOR DE MAQUINARIA | P134: 15 | U134: =7130/30 -> 237.6666667 | V134: =TRUNC(U134*P134,2) -> 3565 | W134: =TRUNC(U134*P134*0.04,2) -> 142.6 | X134: =TRUNC(U134*0.07*P134,2) -> 249.55 | Y134: =S134 -> 0 | Z134: =TRUNC(X134+W134+(IF(Y134>519,519,Y134))+IF(R134=0,0,R134*U134),2) -> 392.15 | AA134: =TRUNC((IF(R134=0,P134*U134,(P134-R134)*U134))+(IF(Y134<519,0,Y134-519)),2)+T134 -> 3565 | AB134: =Z134+AA134 -> 3957.15 | AD134: 500 | AE134: 0 | AF134: =IF(U134>0.01,(AA134-VLOOKUP(AA134,quincenal,1))*VLOOKUP(AA134,quincenal,3)+VLOOKUP(AA134,quincenal,2)-VLOOKUP(AA134,subquincenal,2),0) -> 176.388912 | AG134: =TRUNC(IF(AF134>0.01,AF134,0),2) -> 176.38 | AH134: =TRUNC(IF(AF134<0.01,-AF134,0),2) -> 0 | AI134: =AB134-AD134-AE134-AG134+AH134 -> 3280.77 | AK134: 81
A135: 71 | D135: ACEVEDO OCHOA J. GUADALUPE | H135: ALMACENISTA | P135: 15 | Q135: TARJETA | S135: 0 | T135: 0 | U135: =5714/30 -> 190.4666667 | V135: =TRUNC(U135*P135,2) -> 2857 | W135: =TRUNC(U135*P135*0.04,2) -> 114.28 | X135: =TRUNC(U135*0.07*P135,2) -> 199.99 | Y135: =S135 -> 0 | Z135: =TRUNC(X135+W135+(IF(Y135>519,519,Y135))+IF(R135=0,0,R135*U135),2) -> 314.27 | AA135: =TRUNC((IF(R135=0,P135*U135,(P135-R135)*U135))+(IF(Y135<519,0,Y135-519)),2)+T135 -> 2857 | AB135: =Z135+AA135 -> 3171.27 | AE135: 0 | AF135: =IF(U135>0.01,(AA135-VLOOKUP(AA135,quincenal,1))*VLOOKUP(AA135,quincenal,3)+VLOOKUP(AA135,quincenal,2)-VLOOKUP(AA135,subquincenal,2),0) -> 61.408512 | AG135: =TRUNC(IF(AF135>0.01,AF135,0),2) -> 61.4 | AH135: =TRUNC(IF(AF135<0.01,-AF135,0),2) -> 0 | AI135: =AB135-AD135-AE135-AG135+AH135 -> 3109.87 | AK135: 94
A136: 72 | D136: ARQUIETA VADILLO ARTURO | E136: AUVA551030FJ0 | F136: AUVA551030HJCRDR15 | H136: PINTOR GENERAL | P136: 15 | Q136: SOBRE | S136: 0 | T136: 0 | U136: =9416/30 -> 313.8666667 | V136: =TRUNC(U136*P136,2) -> 4708 | W136: =TRUNC(U136*P136*0.04,2) -> 188.32 | X136: =TRUNC(U136*0.07*P136,2) -> 329.56 | Y136: =S136 -> 0 | Z136: =TRUNC(X136+W136+(IF(Y136>519,519,Y136))+IF(R136=0,0,R136*U136),2) -> 517.88 | AA136: =TRUNC((IF(R136=0,P136*U136,(P136-R136)*U136))+(IF(Y136<519,0,Y136-519)),2)+T136 -> 4708 | AB136: =Z136+AA136 -> 5225.88 | AD136: 0 | AF136: =IF(U136>0.01,(AA136-VLOOKUP(AA136,quincenal,1))*VLOOKUP(AA136,quincenal,3)+VLOOKUP(AA136,quincenal,2)-VLOOKUP(AA136,subquincenal,2),0) -> 471.179088 | AG136: =TRUNC(IF(AF136>0.01,AF136,0),2) -> 471.17 | AH136: =TRUNC(IF(AF136<0.01,-AF136,0),2) -> 0 | AI136: =AB136-AD136-AE136-AG136+AH136 -> 4754.71 | AK136: 96
D137: ADMINISTRACION DE LOS SERVICIOS PUBLICOS MUNICIPALES | V137: =SUM(V132:V136) -> 23402 | W137: =SUM(W132:W136) -> 936.08 | X137: 1638.13 | Y137: 0 | Z137: 2574.21 | AA137: 23402 | AB137: 25976.21 | AC137: 0 | AD137: 500 | AE137: 0 | AF137: 2251.956424 | AG137: 2251.92 | AH137: 0 | AI137: 23224.29
D138: DIRECCION GENERAL DE OBRAS PUBLICAS
A139: =A136+1 -> 73 | B139: 4 | C139: 1 | D139: DAVALOS SALCEDO MIGUEL CARLOS | H139: DIRECTOR DE OBRAS PÚBLICAS | P139: 15 | Q139: TARJETA | S139: 0 | T139: 0 | U139: =14973/30 -> 499.1 | V139: =TRUNC(U139*P139,2) -> 7486.5 | W139: =TRUNC(U139*P139*0.04,2) -> 299.46 | X139: =TRUNC(U139*0.07*P139,2) -> 524.05 | Y139: =S139 -> 0 | Z139: =TRUNC(X139+W139+(IF(Y139>519,519,Y139))+IF(R139=0,0,R139*U139),2) -> 823.51 | AA139: =TRUNC((IF(R139=0,P139*U139,(P139-R139)*U139))+(IF(Y139<519,0,Y139-519)),2)+T139 -> 7486.5 | AB139: =Z139+AA139 -> 8310.01 | AD139: 0 | AE139: 0 | AF139: =IF(U139>0.01,(AA139-VLOOKUP(AA139,quincenal,1))*VLOOKUP(AA139,quincenal,3)+VLOOKUP(AA139,quincenal,2)-VLOOKUP(AA139,subquincenal,2),0) -> 1051.927224 | AG139: =TRUNC(IF(AF139>0.01,AF139,0),2) -> 1051.92 | AH139: =TRUNC(IF(AF139<0.01,-AF139,0),2) -> 0 | AI139: =AB139-AD139-AE139-AG139+AH139 -> 7258.09 | AK139: 97
A140: =A139+1 -> 74 | D140: GUTIERREZ MARTINEZ JORGE | H140: SUB DIRECTOR DE OBRAS PÚBLICAS | P140: 15 | Q140: TARJETA | S140: 0 | T140: 0 | U140: =10341/30 -> 344.7 | V140: =TRUNC(U140*P140,2) -> 5170.5 | W140: =TRUNC(U140*P140*0.04,2) -> 206.82 | X140: =TRUNC(U140*0.07*P140,2) -> 361.93 | Y140: =S140 -> 0 | Z140: =TRUNC(X140+W140+(IF(Y140>519,519,Y140))+IF(R140=0,0,R140*U140),2) -> 568.75 | AA140: =TRUNC((IF(R140=0,P140*U140,(P140-R140)*U140))+(IF(Y140<519,0,Y140-519)),2)+T140 -> 5170.5 | AB140: =Z140+AA140 -> 5739.25 | AE140: 0 | AF140: =IF(U140>0.01,(AA140-VLOOKUP(AA140,quincenal,1))*VLOOKUP(AA140,quincenal,3)+VLOOKUP(AA140,quincenal,2)-VLOOKUP(AA140,subquincenal,2),0) -> 557.229624 | AG140: =TRUNC(IF(AF140>0.01,AF140,0),2) -> 557.22 | AH140: =TRUNC(IF(AF140<0.01,-AF140,0),2) -> 0 | AI140: =AB140-AD140-AE140-AG140+AH140 -> 5182.03 | AK140: 98
A141: =A140+1 -> 75 | D141: FLORES IÑIGUEZ JUAN RAYMUNDO | E141: FOIJ8508313Z1 | F141: FOIJ850831HJCLXN07 | G141: 2007-01-01 | H141: SUB-DIRECTOR DESARROLLO URBANO | P141: 15 | Q141: TARJETA | S141: 0 | T141: 0 | U141: =7781/30 -> 259.3666667 | V141: 3890.5 | W141: 155.62 | X141: 272.33 | Y141: 0 | Z141: 427.95 | AA141: 3890.5 | AB141: 4318.45 | AE141: 0 | AF141: =IF(U141>0.01,(AA141-VLOOKUP(AA141,quincenal,1))*VLOOKUP(AA141,quincenal,3)+VLOOKUP(AA141,quincenal,2)-VLOOKUP(AA141,subquincenal,2),0) -> 331.5684 | AG141: 331.56 | AH141: 0 | AI141: 3986.89 | AK141: 99
A142: 76 | D142: RENTERIA MENDEZ FRANCISCO | E142: REMF850816I26 | F142: REMF850816HJCNNR00 | G142: 2008-03-05 | H142: AUXILIAR DE DIRECCIÓN | P142: 15 | Q142: TARJETA | S142: 0 | T142: 0 | U142: =9121/30 -> 304.0333333 | V142: 4560.5 | W142: 182.42 | X142: 319.23 | Y142: 0 | Z142: 501.65 | AA142: 4560.5 | AB142: 5062.15 | AE142: 0 | AF142: 444.747088 | AG142: 444.74 | AH142: 0 | AI142: 4617.41 | AK142: 100
D143: =D138 -> DIRECCION GENERAL DE OBRAS PUBLICAS | V143: =SUM(V139:V142) -> 21108 | W143: =SUM(W139:W142) -> 844.32 | X143: 1477.54 | Y143: 0 | Z143: 2321.86 | AA143: 21108 | AB143: 23429.86 | AC143: 0 | AD143: 0 | AE143: 0 | AF143: 2385.472336 | AG143: 2385.44 | AH143: 0 | AI143: 21044.42
D145: DEPARTAMENTO DE CEMENTERIOS
A146: =A142+1 -> 77 | D146: ILLAN RUIZ FERNANDO | E146: RIOA520619 | F146: RIOA520619HJCVRD05 | H146: ADMINISTRADOR DE CEMENTERIOS | P146: 15 | Q146: TARJETA | S146: 0 | T146: 0 | U146: =6795/30 -> 226.5 | V146: =TRUNC(U146*P146,2) -> 3397.5 | W146: =TRUNC(U146*P146*0.04,2) -> 135.9 | X146: =TRUNC(U146*0.07*P146,2) -> 237.82 | Y146: =S146 -> 0 | Z146: =TRUNC(X146+W146+(IF(Y146>519,519,Y146))+IF(R146=0,0,R146*U146),2) -> 373.72 | AA146: =TRUNC((IF(R146=0,P146*U146,(P146-R146)*U146))+(IF(Y146<519,0,Y146-519)),2)+T146 -> 3397.5 | AB146: =Z146+AA146 -> 3771.22 | AE146: 0 | AF146: =IF(U146>0.01,(AA146-VLOOKUP(AA146,quincenal,1))*VLOOKUP(AA146,quincenal,3)+VLOOKUP(AA146,quincenal,2)-VLOOKUP(AA146,subquincenal,2),0) -> 140.464912 | AG146: =TRUNC(IF(AF146>0.01,AF146,0),2) -> 140.46 | AH146: =TRUNC(IF(AF146<0.01,-AF146,0),2) -> 0 | AI146: =AB146-AD146-AE146-AG146+AH146 -> 3630.76 | AK146: 103
D147: DEPARTAMENTO DE CEMENTERIOS | V147: =SUM(V146:V146) -> 3397.5 | W147: =SUM(W146:W146) -> 135.9 | X147: 237.82 | Y147: 0 | Z147: 373.72 | AA147: 3397.5 | AB147: 3771.22 | AC147: 0 | AD147: 0 | AE147: 0 | AF147: 140.464912 | AG147: 140.46 | AH147: 0 | AI147: 3630.76
D149: DEPARTAMENTO DE RASTRO
A150: =A146+1 -> 78 | D150: LOPEZ VILLEGAS J. JESUS | E150: LOVJ470602UN7 | F150: LOVJ470602HJCPLS07 | H150: GUARDA RASTRO | P150: 15 | Q150: TARJETA | S150: 0 | T150: 0 | U150: =4923/30 -> 164.1 | V150: =TRUNC(U150*P150,2) -> 2461.5 | W150: =TRUNC(U150*P150*0.04,2) -> 98.46 | X150: =TRUNC(U150*0.07*P150,2) -> 172.3 | Y150: =S150 -> 0 | Z150: =TRUNC(X150+W150+(IF(Y150>519,519,Y150))+IF(R150=0,0,R150*U150),2) -> 270.76 | AA150: =TRUNC((IF(R150=0,P150*U150,(P150-R150)*U150))+(IF(Y150<519,0,Y150-519)),2)+T150 -> 2461.5 | AB150: =Z150+AA150 -> 2732.26 | AE150: 0 | AF150: =IF(U150>0.01,(AA150-VLOOKUP(AA150,quincenal,1))*VLOOKUP(AA150,quincenal,3)+VLOOKUP(AA150,quincenal,2)-VLOOKUP(AA150,subquincenal,2),0) -> 3.378112 | AG150: =TRUNC(IF(AF150>0.01,AF150,0),2) -> 3.37 | AH150: =TRUNC(IF(AF150<0.01,-AF150,0),2) -> 0 | AI150: =AB150-AD150-AE150-AG150+AH150 -> 2728.89 | AK150: 107
A151: =A150+1 -> 79 | D151: FREGOSO BARBOZA CARLOS RAFAEL | E151: PARR | H151: VETERINARIO | P151: 15 | Q151: TARJETA | S151: 0 | T151: 0 | U151: =7632/30 -> 254.4 | V151: =TRUNC(U151*P151,2) -> 3816 | W151: =TRUNC(U151*P151*0.04,2) -> 152.64 | X151: =TRUNC(U151*0.07*P151,2) -> 267.12 | Y151: =S151 -> 0 | Z151: =TRUNC(X151+W151+(IF(Y151>519,519,Y151))+IF(R151=0,0,R151*U151),2) -> 419.76 | AA151: =TRUNC((IF(R151=0,P151*U151,(P151-R151)*U151))+(IF(Y151<519,0,Y151-519)),2)+T151 -> 3816 | AB151: =Z151+AA151 -> 4235.76 | AD151: 0 | AE151: 0 | AF151: =IF(U151>0.01,(AA151-VLOOKUP(AA151,quincenal,1))*VLOOKUP(AA151,quincenal,3)+VLOOKUP(AA151,quincenal,2)-VLOOKUP(AA151,subquincenal,2),0) -> 319.6484 | AG151: =TRUNC(IF(AF151>0.01,AF151,0),2) -> 319.64 | AH151: =TRUNC(IF(AF151<0.01,-AF151,0),2) -> 0 | AI151: =AB151-AD151-AE151-AG151+AH151 -> 3916.12 | AK151: 108
D152: DEPARTAMENTO DE RASTRO | V152: =SUM(V150:V151) -> 6277.5 | W152: =SUM(W150:W151) -> 251.1 | X152: 439.42 | Y152: 0 | Z152: 690.52 | AA152: 6277.5 | AB152: 6968.02 | AC152: 0 | AD152: 0 | AE152: 0 | AF152: 323.026512 | AG152: 323.01 | AH152: 0 | AI152: 6645.01 | AJ152: 0
D155: DEPARTAMENTO DE ASEO PUBLICO
A156: =A151+1 -> 80 | B156: 5 | C156: 7 | D156: NAVARRO HERNANDEZ SOSTENES | E156: HUAB811011 | F156: HUAB810114HJCRGR01 | G156: 2007-02-01 | H156: SUPERVISOR DE ASEO PUBLICO | P156: 15 | Q156: TARJETA | S156: 0 | T156: 0 | U156: 224.452 | V156: =TRUNC(U156*P156,2) -> 3366.78 | W156: =TRUNC(U156*P156*0.04,2) -> 134.67 | X156: =TRUNC(U156*0.07*P156,2) -> 235.67 | Y156: =S156 -> 0 | Z156: =TRUNC(X156+W156+(IF(Y156>519,519,Y156))+IF(R156=0,0,R156*U156),2) -> 370.34 | AA156: =TRUNC((IF(R156=0,P156*U156,(P156-R156)*U156))+(IF(Y156<519,0,Y156-519)),2)+T156 -> 3366.78 | AB156: =Z156+AA156 -> 3737.12 | AE156: 0 | AF156: =IF(U156>0.01,(AA156-VLOOKUP(AA156,quincenal,1))*VLOOKUP(AA156,quincenal,3)+VLOOKUP(AA156,quincenal,2)-VLOOKUP(AA156,subquincenal,2),0) -> 137.122576 | AG156: =TRUNC(IF(AF156>0.01,AF156,0),2) -> 137.12 | AH156: =TRUNC(IF(AF156<0.01,-AF156,0),2) -> 0 | AI156: =AB156-AD156-AE156-AG156+AH156 -> 3600 | AK156: 112
A157: =A156+1 -> 81 | D157: HUERTA AGUILA BERNARDINO | E157: HUAB811011 | F157: HUAB810114HJCRGR01 | G157: 2007-02-01 | H157: RECOLECTOR ASEO PUBLICO | P157: 15 | Q157: TARJETA | S157: 0 | T157: 0 | U157: =4622/30 -> 154.0666667 | V157: =TRUNC(U157*P157,2) -> 2311 | W157: =TRUNC(U157*P157*0.04,2) -> 92.44 | X157: =TRUNC(U157*0.07*P157,2) -> 161.77 | Y157: =S157 -> 0 | Z157: =TRUNC(X157+W157+(IF(Y157>519,519,Y157))+IF(R157=0,0,R157*U157),2) -> 254.21 | AA157: =TRUNC((IF(R157=0,P157*U157,(P157-R157)*U157))+(IF(Y157<519,0,Y157-519)),2)+T157 -> 2311 | AB157: =Z157+AA157 -> 2565.21 | AE157: 0 | AF157: =IF(U157>0.01,(AA157-VLOOKUP(AA157,quincenal,1))*VLOOKUP(AA157,quincenal,3)+VLOOKUP(AA157,quincenal,2)-VLOOKUP(AA157,subquincenal,2),0) -> -27.396288 | AG157: =TRUNC(IF(AF157>0.01,AF157,0),2) -> 0 | AH157: =TRUNC(IF(AF157<0.01,-AF157,0),2) -> 27.39 | AI157: =AB157-AD157-AE157-AG157+AH157 -> 2592.6 | AK157: 113
A158: =A157+1 -> 82 | D158: GRACIA GOMEZ JAVIER | E158: GAGJ731114 | F158: GAGJ731114HJCRMV00 | G158: 2004-01-01 | H158: RECOLECTOR ASEO PUBLICO | P158: 15 | Q158: TARJETA | S158: 0 | T158: 0 | U158: =4622/30 -> 154.0666667 | V158: 2311 | W158: 92.44 | X158: 161.77 | Y158: 0 | Z158: 254.21 | AA158: 2311 | AB158: 2565.21 | AE158: 0 | AF158: -27.396288 | AG158: 0 | AH158: 27.39 | AI158: 2592.6 | AK158: 114
A159: =A158+1 -> 83 | D159: FREGOZO ALVARADO ALFONSO | E159: FEAA650918 | F159: FEAA650818HJCRLL05 | G159: 2003-01-01 | H159: RECOLECTOR ASEO PUBLICO | P159: 15 | Q159: TARJETA | S159: 0 | T159: 0 | U159: 154.0666667 | V159: 2311 | W159: 92.44 | X159: 161.77 | Y159: 0 | Z159: 254.21 | AA159: 2311 | AB159: 2565.21 | AE159: 0 | AF159: -27.396288 | AG159: 0 | AH159: 27.39 | AI159: 2592.6 | AK159: 115
A160: 84 | D160: TELLEZ GOMEZ VICENTE | H160: RECOLECTOR ASEO PUBLICO | P160: 15 | Q160: TARJETA | S160: 0 | T160: 0 | U160: 154.0666667 | V160: 2311 | W160: 92.44 | X160: 161.77 | Y160: =S160 -> 0 | Z160: 254.21 | AA160: 2311 | AB160: =Z160+AA160 -> 2565.21 | AD160: 0 | AE160: 0 | AF160: =IF(U160>0.01,(AA160-VLOOKUP(AA160,quincenal,1))*VLOOKUP(AA160,quincenal,3)+VLOOKUP(AA160,quincenal,2)-VLOOKUP(AA160,subquincenal,2),0) -> -27.396288 | AG160: 0 | AH160: =TRUNC(IF(AF160<0.01,-AF160,0),2) -> 27.39 | AI160: =AB160-AD160-AE160-AG160+AH160 -> 2592.6 | AK160: 116
A161: 85 | D161: CISNEROS VAZQUEZ RAMIRO | E161: CIVR540430 | F161: CIVR540430HJCSZM04 | G161: 2007-01-01 | H161: RECOLECTOR ASEO PUBLICO | P161: 15 | Q161: TARJETA | S161: 0 | T161: 0 | U161: =4622/30 -> 154.0666667 | V161: 2311 | W161: 92.44 | X161: 161.77 | Y161: 0 | Z161: 254.21 | AA161: 2311 | AB161: 2565.21 | AE161: 0 | AF161: -27.396288 | AG161: 0 | AH161: 27.39 | AI161: 2592.6 | AK161: 121
D162: DEPARTAMENTO DE ASEO PUBLICO | V162: =SUM(V156:V161) -> 14921.78 | W162: =SUM(W156:W161) -> 596.87 | X162: 1044.52 | Y162: 0 | Z162: 1641.39 | AA162: 14921.78 | AB162: 16563.17 | AC162: 0 | AD162: 0 | AE162: 0 | AF162: 0.141136 | AG162: 137.12 | AH162: 136.95 | AI162: 16563
D164: DEPARTAMENTO DE PARQUES Y JARDINES
A165: =A161+1 -> 86 | B165: 5 | C165: 8 | D165: NAVARRO HUERTA ISIDRO | E165: HUCR450811 | F165: HUCR450831HJCRRM08 | G165: 2004-01-01 | H165: SUPERVISOR DE PARQUES Y JARDINES | P165: 15 | Q165: TARJETA | S165: 0 | T165: 0 | U165: =6130/30 -> 204.3333333 | V165: =TRUNC(U165*P165,2) -> 3065 | W165: =TRUNC(U165*P165*0.04,2) -> 122.6 | X165: =TRUNC(U165*0.07*P165,2) -> 214.55 | Y165: =S165 -> 0 | Z165: =TRUNC(X165+W165+(IF(Y165>519,519,Y165))+IF(R165=0,0,R165*U165),2) -> 337.15 | AA165: =TRUNC((IF(R165=0,P165*U165,(P165-R165)*U165))+(IF(Y165<519,0,Y165-519)),2)+T165 -> 3065 | AB165: =Z165+AA165 -> 3402.15 | AE165: 0 | AF165: =IF(U165>0.01,(AA165-VLOOKUP(AA165,quincenal,1))*VLOOKUP(AA165,quincenal,3)+VLOOKUP(AA165,quincenal,2)-VLOOKUP(AA165,subquincenal,2),0) -> 84.038912 | AG165: =TRUNC(IF(AF165>0.01,AF165,0),2) -> 84.03 | AH165: =TRUNC(IF(AF165<0.01,-AF165,0),2) -> 0 | AI165: =AB165-AD165-AE165-AG165+AH165 -> 3318.12 | AK165: 122
D166: VERTEDERO MUNICIPAL | V166: =SUM(V165:V165) -> 3065 | W166: =SUM(W165:W165) -> 122.6 | X166: 214.55 | Y166: 0 | Z166: 337.15 | AA166: 3065 | AB166: 3402.15 | AC166: 0 | AD166: 0 | AE166: 0 | AF166: 84.038912 | AG166: 84.03 | AH166: 0 | AI166: 3318.12
D168: DEPARTAMENTO DE ALUMBRADO PUBLICO
A169: =A165+1 -> 87 | D169: RUIZ HERNANDEZ CELESTINO | E169: RUHC540519 | F169: RUHC540519HJCZRL03 | G169: 2004-01-01 | H169: JEFE DE ALUMBRADO PUBLICO | P169: 15 | Q169: TARJETA | S169: 0 | T169: 0 | U169: =7130/30 -> 237.6666667 | V169: =TRUNC(U169*P169,2) -> 3565 | W169: =TRUNC(U169*P169*0.04,2) -> 142.6 | X169: =TRUNC(U169*0.07*P169,2) -> 249.55 | Y169: =S169 -> 0 | Z169: =TRUNC(X169+W169+(IF(Y169>519,519,Y169))+IF(R169=0,0,R169*U169),2) -> 392.15 | AA169: =TRUNC((IF(R169=0,P169*U169,(P169-R169)*U169))+(IF(Y169<519,0,Y169-519)),2)+T169 -> 3565 | AB169: =Z169+AA169 -> 3957.15 | AE169: 0 | AF169: =IF(U169>0.01,(AA169-VLOOKUP(AA169,quincenal,1))*VLOOKUP(AA169,quincenal,3)+VLOOKUP(AA169,quincenal,2)-VLOOKUP(AA169,subquincenal,2),0) -> 176.388912 | AG169: =TRUNC(IF(AF169>0.01,AF169,0),2) -> 176.38 | AH169: =TRUNC(IF(AF169<0.01,-AF169,0),2) -> 0 | AI169: =AB169-AD169-AE169-AG169+AH169 -> 3780.77 | AK169: 131
A170: =A169+1 -> 88 | D170: LARES RODRIGUEZ JOSE ANGEL | H170: ENCARGADO DE ALUMBRADO PUBLICO | P170: 15 | Q170: TARJETA | S170: 0 | T170: 0 | U170: =6795/30 -> 226.5 | V170: =TRUNC(U170*P170,2) -> 3397.5 | W170: =TRUNC(U170*P170*0.04,2) -> 135.9 | X170: =TRUNC(U170*0.07*P170,2) -> 237.82 | Y170: =S170 -> 0 | Z170: =TRUNC(X170+W170+(IF(Y170>519,519,Y170))+IF(R170=0,0,R170*U170),2) -> 373.72 | AA170: =TRUNC((IF(R170=0,P170*U170,(P170-R170)*U170))+(IF(Y170<519,0,Y170-519)),2)+T170 -> 3397.5 | AB170: =Z170+AA170 -> 3771.22 | AE170: 0 | AF170: =IF(U170>0.01,(AA170-VLOOKUP(AA170,quincenal,1))*VLOOKUP(AA170,quincenal,3)+VLOOKUP(AA170,quincenal,2)-VLOOKUP(AA170,subquincenal,2),0) -> 140.464912 | AG170: =TRUNC(IF(AF170>0.01,AF170,0),2) -> 140.46 | AH170: =TRUNC(IF(AF170<0.01,-AF170,0),2) -> 0 | AI170: =AB170-AD170-AE170-AG170+AH170 -> 3630.76 | AK170: 132
D171: DEPARTAMENTO DE ALUMBRADO PUBLICO | V171: =SUM(V169:V170) -> 6962.5 | W171: =SUM(W169:W170) -> 278.5 | X171: 487.37 | Y171: 0 | Z171: 765.87 | AA171: 6962.5 | AB171: 7728.37 | AC171: 0 | AD171: 0 | AE171: 0 | AF171: 316.853824 | AG171: 316.84 | AH171: 0 | AI171: 7411.53
D174: DEPARTAMENTO DE DEPORTES
A175: =A170+1 -> 89 | B175: 5 | C175: 14 | D175: ACOSTA GONZALEZ MIGUEL | H175: ENCARGADO DE LA UNIDAD DEPORTIVA | P175: 15 | Q175: TARJETA | S175: 0 | T175: 0 | U175: =4615/30 -> 153.8333333 | V175: =TRUNC(U175*P175,2) -> 2307.5 | W175: =TRUNC(U175*P175*0.04,2) -> 92.3 | X175: =TRUNC(U175*0.07*P175,2) -> 161.52 | Y175: =S175 -> 0 | Z175: =TRUNC(X175+W175+(IF(Y175>519,519,Y175))+IF(R175=0,0,R175*U175),2) -> 253.82 | AA175: =TRUNC((IF(R175=0,P175*U175,(P175-R175)*U175))+(IF(Y175<519,0,Y175-519)),2)+T175 -> 2307.5 | AB175: =Z175+AA175 -> 2561.32 | AD175: 0 | AE175: 0 | AF175: =IF(U175>0.01,(AA175-VLOOKUP(AA175,quincenal,1))*VLOOKUP(AA175,quincenal,3)+VLOOKUP(AA175,quincenal,2)-VLOOKUP(AA175,subquincenal,2),0) -> -27.777088 | AG175: =TRUNC(IF(AF175>0.01,AF175,0),2) -> 0 | AH175: =TRUNC(IF(AF175<0.01,-AF175,0),2) -> 27.77 | AI175: =AB175-AD175-AE175-AG175+AH175 -> 2589.09 | AK175: 135
A176: =A175+1 -> 90 | D176: CABRALES MEZA CECILIO | E176: GOES781103IAA | F176: GOES781103MJCDNL05 | G176: 2009-01-01 | H176: VIGILANTE EN EL DOMO | P176: 15 | Q176: TARJETA | S176: 0 | T176: 0 | U176: =3158/30 -> 105.2666667 | V176: 1579 | W176: 63.16 | X176: 110.53 | Y176: 0 | Z176: 173.69 | AA176: 1579 | AB176: 1752.69 | AE176: 0 | AF176: =IF(U176>0.01,(AA176-VLOOKUP(AA176,quincenal,1))*VLOOKUP(AA176,quincenal,3)+VLOOKUP(AA176,quincenal,2)-VLOOKUP(AA176,subquincenal,2),0) -> -110.66184 | AG176: =TRUNC(IF(AF176>0.01,AF176,0),2) -> 0 | AH176: 110.66 | AI176: 1863.35 | AK176: 141
D177: DEPARTAMENTO DE DEPORTES | V177: =SUM(V175:V176) -> 3886.5 | W177: =SUM(W175:W176) -> 155.46 | X177: 272.05 | Y177: 0 | Z177: 427.51 | AA177: 3886.5 | AB177: 4314.01 | AC177: 0 | AD177: 0 | AE177: 0 | AF177: -138.438928 | AG177: 0 | AH177: 138.43 | AI177: 4452.44
D179: SERVICIOS MEDICOS
A180: =A176+1 -> 91 | D180: MARTINEZ VALDIVIA FRANCISCO | E180: MAVF520525 | F180: MAVF520525HJCRLR02 | G180: 2004-01-01 | H180: MEDICO MUNICIPAL | P180: 15 | Q180: TARJETA | S180: 0 | T180: 0 | U180: =7559/30 -> 251.9666667 | V180: =TRUNC(U180*P180,2) -> 3779.5 | W180: =TRUNC(U180*P180*0.04,2) -> 151.18 | X180: =TRUNC(U180*0.07*P180,2) -> 264.56 | Y180: =S180 -> 0 | Z180: =TRUNC(X180+W180+(IF(Y180>519,519,Y180))+IF(R180=0,0,R180*U180),2) -> 415.74 | AA180: =TRUNC((IF(R180=0,P180*U180,(P180-R180)*U180))+(IF(Y180<519,0,Y180-519)),2)+T180 -> 3779.5 | AB180: =Z180+AA180 -> 4195.24 | AE180: 0 | AF180: =IF(U180>0.01,(AA180-VLOOKUP(AA180,quincenal,1))*VLOOKUP(AA180,quincenal,3)+VLOOKUP(AA180,quincenal,2)-VLOOKUP(AA180,subquincenal,2),0) -> 313.8084 | AG180: =TRUNC(IF(AF180>0.01,AF180,0),2) -> 313.8 | AH180: =TRUNC(IF(AF180<0.01,-AF180,0),2) -> 0 | AI180: =AB180-AD180-AE180-AG180+AH180 -> 3881.44 | AK180: 142
A181: =A180+1 -> 92 | D181: LEAL FRANCISCO JAVIER | E181: MAVF520525 | F181: MAVF520525HJCRLR02 | G181: 2004-01-01 | H181: PEDIATRA | P181: 15 | Q181: TARJETA | S181: 0 | T181: 0 | U181: =8121/30 -> 270.7 | V181: =TRUNC(U181*P181,2) -> 4060.5 | W181: =TRUNC(U181*P181*0.04,2) -> 162.42 | X181: =TRUNC(U181*0.07*P181,2) -> 284.23 | Y181: =S181 -> 0 | Z181: =TRUNC(X181+W181+(IF(Y181>519,519,Y181))+IF(R181=0,0,R181*U181),2) -> 446.65 | AA181: =TRUNC((IF(R181=0,P181*U181,(P181-R181)*U181))+(IF(Y181<519,0,Y181-519)),2)+T181 -> 4060.5 | AB181: =Z181+AA181 -> 4507.15 | AE181: 0 | AF181: =IF(U181>0.01,(AA181-VLOOKUP(AA181,quincenal,1))*VLOOKUP(AA181,quincenal,3)+VLOOKUP(AA181,quincenal,2)-VLOOKUP(AA181,subquincenal,2),0) -> 358.7684 | AG181: =TRUNC(IF(AF181>0.01,AF181,0),2) -> 358.76 | AH181: =TRUNC(IF(AF181<0.01,-AF181,0),2) -> 0 | AI181: =AB181-AD181-AE181-AG181+AH181 -> 4148.39 | AK181: 143
A182: =A181+1 -> 93 | D182: ROBLES GONZALEZ CLAUDIA SUSANA | E182: MAVF520525 | F182: MAVF520525HJCRLR02 | G182: 2004-01-01 | H182: MEDICO | P182: 15 | Q182: TARJETA | S182: 0 | T182: 0 | U182: =8121/30 -> 270.7 | V182: 4060.5 | W182: 162.42 | X182: 284.23 | Y182: 0 | Z182: 446.65 | AA182: 4060.5 | AB182: 4507.15 | AE182: 0 | AF182: =IF(U182>0.01,(AA182-VLOOKUP(AA182,quincenal,1))*VLOOKUP(AA182,quincenal,3)+VLOOKUP(AA182,quincenal,2)-VLOOKUP(AA182,subquincenal,2),0) -> 358.7684 | AG182: 358.76 | AH182: 0 | AI182: 4148.39 | AK182: 144
A183: 94 | D183: ESQUIVEL REYES VICTORIA GUADALUPE | H183: ENFERMEROA CENTRO DE SALUD SANTA ROSALIA | P183: 15 | Q183: TARJETA | S183: 0 | T183: 0 | U183: 82.1099 | V183: 1231.64 | W183: 49.26 | X183: 86.21 | Y183: 0 | Z183: 135.47 | AA183: 1231.64 | AB183: 1367.11 | AE183: 0 | AF183: =IF(U183>0.01,(AA183-VLOOKUP(AA183,quincenal,1))*VLOOKUP(AA183,quincenal,3)+VLOOKUP(AA183,quincenal,2)-VLOOKUP(AA183,subquincenal,2),0) -> -132.89288 | AG183: 0 | AH183: 132.89 | AI183: 1500
D184: SERVICIOS MEDICOS | V184: =SUM(V180:V183) -> 13132.14 | W184: =SUM(W180:W183) -> 525.28 | X184: 919.23 | Y184: 0 | Z184: 1444.51 | AA184: 13132.14 | AB184: =SUM(AB180:AB183) -> 14576.65 | AC184: 0 | AD184: 0 | AE184: 0 | AF184: 898.45232 | AG184: 1031.32 | AH184: 132.89 | AI184: 13678.22 | AJ184: =SUM(AJ180:AJ182) -> 0
D187: DEPARTAMENTO DE DESARROLLO RURAL
A188: =A183+1 -> 95 | B188: 1 | C188: 19 | D188: PARRA AGUAYO JORGE | E188: MENV711022 | F188: MENV711022HJCNVC07 | H188: ENCARGADO DE DESARROLLO RURAL | P188: 15 | Q188: TARJETA | S188: 0 | T188: 0 | U188: =12653/30 -> 421.7666667 | V188: =TRUNC(U188*P188,2) -> 6326.5 | W188: =TRUNC(U188*P188*0.04,2) -> 253.06 | X188: =TRUNC(U188*0.07*P188,2) -> 442.85 | Y188: =S188 -> 0 | Z188: =TRUNC(X188+W188+(IF(Y188>519,519,Y188))+IF(R188=0,0,R188*U188),2) -> 695.91 | AA188: =TRUNC((IF(R188=0,P188*U188,(P188-R188)*U188))+(IF(Y188<519,0,Y188-519)),2)+T188 -> 6326.5 | AB188: =Z188+AA188 -> 7022.41 | AD188: 0 | AE188: 0 | AF188: =IF(U188>0.01,(AA188-VLOOKUP(AA188,quincenal,1))*VLOOKUP(AA188,quincenal,3)+VLOOKUP(AA188,quincenal,2)-VLOOKUP(AA188,subquincenal,2),0) -> 804.151224 | AG188: =TRUNC(IF(AF188>0.01,AF188,0),2) -> 804.15 | AH188: =TRUNC(IF(AF188<0.01,-AF188,0),2) -> 0 | AI188: =AB188-AD188-AE188-AG188+AH188 -> 6218.26 | AK188: 146
A189: =A188+1 -> 96 | D189: MONTES COLIMA DIANA ROCIO | E189: PAGO721112 | F189: PAGO721112HJCLRS01 | H189: AUXILIAR DE DESARROLLO RURAL | P189: 15 | Q189: TARJETA | S189: 0 | T189: 0 | U189: =5714/30 -> 190.4666667 | V189: =TRUNC(U189*P189,2) -> 2857 | W189: =TRUNC(U189*P189*0.04,2) -> 114.28 | X189: =TRUNC(U189*0.07*P189,2) -> 199.99 | Y189: =S189 -> 0 | Z189: =TRUNC(X189+W189+(IF(Y189>519,519,Y189))+IF(R189=0,0,R189*U189),2) -> 314.27 | AA189: =TRUNC((IF(R189=0,P189*U189,(P189-R189)*U189))+(IF(Y189<519,0,Y189-519)),2)+T189 -> 2857 | AB189: =Z189+AA189 -> 3171.27 | AE189: 0 | AF189: =IF(U189>0.01,(AA189-VLOOKUP(AA189,quincenal,1))*VLOOKUP(AA189,quincenal,3)+VLOOKUP(AA189,quincenal,2)-VLOOKUP(AA189,subquincenal,2),0) -> 61.408512 | AG189: =TRUNC(IF(AF189>0.01,AF189,0),2) -> 61.4 | AH189: =TRUNC(IF(AF189<0.01,-AF189,0),2) -> 0 | AI189: =AB189-AD189-AE189-AG189+AH189 -> 3109.87 | AK189: 147
D190: DEPARTAMENTO DE DESARROLLO RURAL | V190: =SUM(V188:V189) -> 9183.5 | W190: =SUM(W188:W189) -> 367.34 | X190: 642.84 | Y190: 0 | Z190: 1010.18 | AA190: 9183.5 | AB190: 10193.68 | AC190: 0 | AD190: 0 | AE190: 0 | AF190: 865.559736 | AG190: 865.55 | AH190: 0 | AI190: 9328.13
D193: CONTRALORIA
A194: =A189+1 -> 97 | B194: 3 | C194: 1 | D194: MEDINA FLORES EVERARDO | E194: BUHM840914 | H194: CONTRALOR | P194: 15 | Q194: TARJETA | S194: 0 | T194: 0 | U194: 442.72 | V194: =TRUNC(U194*P194,2) -> 6640.8 | W194: =TRUNC(U194*P194*0.04,2) -> 265.63 | X194: =TRUNC(U194*0.07*P194,2) -> 464.85 | Y194: =S194 -> 0 | Z194: =TRUNC(X194+W194+(IF(Y194>519,519,Y194))+IF(R194=0,0,R194*U194),2) -> 730.48 | AA194: =TRUNC((IF(R194=0,P194*U194,(P194-R194)*U194))+(IF(Y194<519,0,Y194-519)),2)+T194 -> 6640.8 | AB194: =Z194+AA194 -> 7371.28 | AD194: 0 | AE194: 0 | AF194: =IF(U194>0.01,(AA194-VLOOKUP(AA194,quincenal,1))*VLOOKUP(AA194,quincenal,3)+VLOOKUP(AA194,quincenal,2)-VLOOKUP(AA194,subquincenal,2),0) -> 871.285704 | AG194: =TRUNC(IF(AF194>0.01,AF194,0),2) -> 871.28 | AH194: =TRUNC(IF(AF194<0.01,-AF194,0),2) -> 0 | AI194: =AB194-AD194-AE194-AG194+AH194 -> 6500 | AK194: 149
A195: =A194+1 -> 98 | D195: RODRIGUEZ CASTELLANOS ANGELICA IVETTE | E195: LEPC870628 | H195: AUXILIAR DE CONTRALORIA | P195: 15 | Q195: TARJETA | S195: 0 | T195: 0 | U195: =5714/30 -> 190.4666667 | V195: =TRUNC(U195*P195,2) -> 2857 | W195: =TRUNC(U195*P195*0.04,2) -> 114.28 | X195: =TRUNC(U195*0.07*P195,2) -> 199.99 | Y195: =S195 -> 0 | Z195: =TRUNC(X195+W195+(IF(Y195>519,519,Y195))+IF(R195=0,0,R195*U195),2) -> 314.27 | AA195: =TRUNC((IF(R195=0,P195*U195,(P195-R195)*U195))+(IF(Y195<519,0,Y195-519)),2)+T195 -> 2857 | AB195: =Z195+AA195 -> 3171.27 | AE195: 0 | AF195: =IF(U195>0.01,(AA195-VLOOKUP(AA195,quincenal,1))*VLOOKUP(AA195,quincenal,3)+VLOOKUP(AA195,quincenal,2)-VLOOKUP(AA195,subquincenal,2),0) -> 61.408512 | AG195: =TRUNC(IF(AF195>0.01,AF195,0),2) -> 61.4 | AH195: =TRUNC(IF(AF195<0.01,-AF195,0),2) -> 0 | AI195: =AB195-AD195-AE195-AG195+AH195 -> 3109.87
A196: =A195+1 -> 99 | D196: GUTIERREZ SIORDIA LORENA | H196: SECRETARIA DE SECRETARIA GENERAL | P196: 15 | Q196: TARJETA | S196: 0 | T196: 0 | U196: =5714/30 -> 190.4666667 | V196: =TRUNC(U196*P196,2) -> 2857 | W196: =TRUNC(U196*P196*0.04,2) -> 114.28 | X196: =TRUNC(U196*0.07*P196,2) -> 199.99 | Y196: =S196 -> 0 | Z196: =TRUNC(X196+W196+(IF(Y196>519,519,Y196))+IF(R196=0,0,R196*U196),2) -> 314.27 | AA196: =TRUNC((IF(R196=0,P196*U196,(P196-R196)*U196))+(IF(Y196<519,0,Y196-519)),2)+T196 -> 2857 | AB196: =Z196+AA196 -> 3171.27 | AE196: 0 | AF196: =IF(U196>0.01,(AA196-VLOOKUP(AA196,quincenal,1))*VLOOKUP(AA196,quincenal,3)+VLOOKUP(AA196,quincenal,2)-VLOOKUP(AA196,subquincenal,2),0) -> 61.408512 | AG196: =TRUNC(IF(AF196>0.01,AF196,0),2) -> 61.4 | AH196: =TRUNC(IF(AF196<0.01,-AF196,0),2) -> 0 | AI196: =AB196-AD196-AE196-AG196+AH196 -> 3109.87 | AK196: 150
D197: CONTRALORIA | V197: =SUM(V194:V196) -> 12354.8 | W197: =SUM(W194:W196) -> 494.19 | X197: 864.83 | Y197: 0 | Z197: 1359.02 | AA197: 12354.8 | AB197: 13713.82 | AC197: 0 | AD197: 0 | AE197: 0 | AF197: 994.102728 | AG197: 994.08 | AH197: 0 | AI197: 12719.74
D199: DELEGACIONES
A200: =A196+1 -> 100 | B200: 2 | C200: 1 | D200: ARVIZU BACILIO ALONSO CANUTO | H200: DELEGADO MUNICIPAL DE OCONAHUA | P200: 15 | Q200: TARJETA | S200: 0 | T200: 0 | U200: =3556/30 -> 118.5333333 | V200: =TRUNC(U200*P200,2) -> 1778 | W200: =TRUNC(U200*P200*0.04,2) -> 71.12 | X200: =TRUNC(U200*0.07*P200,2) -> 124.46 | Y200: =S200 -> 0 | Z200: =TRUNC(X200+W200+(IF(Y200>519,519,Y200))+IF(R200=0,0,R200*U200),2) -> 195.58 | AA200: =TRUNC((IF(R200=0,P200*U200,(P200-R200)*U200))+(IF(Y200<519,0,Y200-519)),2)+T200 -> 1778 | AB200: =Z200+AA200 -> 1973.58 | AE200: 0 | AF200: =IF(U200>0.01,(AA200-VLOOKUP(AA200,quincenal,1))*VLOOKUP(AA200,quincenal,3)+VLOOKUP(AA200,quincenal,2)-VLOOKUP(AA200,subquincenal,2),0) -> -85.92584 | AG200: 0 | AH200: =TRUNC(IF(AF200<0.01,-AF200,0),2) -> 85.92 | AI200: =AB200-AD200-AE200-AG200+AH200 -> 2059.5 | AK200: 151
A201: =A200+1 -> 101 | Q201: TARJETA | S201: 0 | T201: 0 | U201: =3933/30 -> 131.1 | Y201: 0 | Z201: 0 | AA201: 0 | AB201: 0 | AI201: 0
A202: =A200+1 -> 101 | D202: BRAMBILA MELCHOR ADRIAN | H202: ENCARGADO DE OBRAS ´PUBLICAS EN OCONAHUA | P202: 15 | Q202: TARJETA | S202: 0 | T202: 0 | U202: =6795/30 -> 226.5 | V202: =TRUNC(U202*P202,2) -> 3397.5 | W202: =TRUNC(U202*P202*0.04,2) -> 135.9 | X202: =TRUNC(U202*0.07*P202,2) -> 237.82 | Y202: =S202 -> 0 | Z202: =TRUNC(X202+W202+(IF(Y202>519,519,Y202))+IF(R202=0,0,R202*U202),2) -> 373.72 | AA202: =TRUNC((IF(R202=0,P202*U202,(P202-R202)*U202))+(IF(Y202<519,0,Y202-519)),2)+T202 -> 3397.5 | AB202: =Z202+AA202 -> 3771.22 | AE202: 0 | AF202: =IF(U202>0.01,(AA202-VLOOKUP(AA202,quincenal,1))*VLOOKUP(AA202,quincenal,3)+VLOOKUP(AA202,quincenal,2)-VLOOKUP(AA202,subquincenal,2),0) -> 140.464912 | AG202: =TRUNC(IF(AF202>0.01,AF202,0),2) -> 140.46 | AH202: =TRUNC(IF(AF202<0.01,-AF202,0),2) -> 0 | AI202: =AB202-AD202-AE202-AG202+AH202 -> 3630.76
A203: =A202+1 -> 102 | E203: LORL560923 | F203: LORL560923HJCPYN00 | H203: GUARDARRASTRO | P203: 0 | Q203: TARJETA | S203: 0 | T203: 0 | U203: 82.1099 | V203: =TRUNC(U203*P203,2) -> 0 | W203: =TRUNC(U203*P203*0.04,2) -> 0 | X203: =TRUNC(U203*0.07*P203,2) -> 0 | Y203: =S203 -> 0 | Z203: =TRUNC(X203+W203+(IF(Y203>519,519,Y203))+IF(R203=0,0,R203*U203),2) -> 0 | AA203: =TRUNC((IF(R203=0,P203*U203,(P203-R203)*U203))+(IF(Y203<519,0,Y203-519)),2)+T203 -> 0 | AB203: =Z203+AA203 -> 0 | AE203: 0 | AF203: =IF(U203>0.01,(AA203-VLOOKUP(AA203,quincenal,1))*VLOOKUP(AA203,quincenal,3)+VLOOKUP(AA203,quincenal,2)-VLOOKUP(AA203,subquincenal,2),0) ->  | AI203: =AB203-AD203-AE203-AG203+AH203 -> 0 | AK203: 155
A204: 103 | D204: ALVAREZ SANDOVAL RUBEN | E204: CESG4509243P3 | F204: CESG450924HMNRNB03 | G204: 2004-02-08 | H204: ENCARGADO DE CEMENTERIOS | P204: 15 | Q204: TARJETA | S204: 0 | T204: 0 | U204: 62.98999 | V204: =TRUNC(U204*P204,2) -> 944.84 | W204: =TRUNC(U204*P204*0.04,2) -> 37.79 | X204: =TRUNC(U204*0.07*P204,2) -> 66.13 | Y204: =S204 -> 0 | Z204: =TRUNC(X204+W204+(IF(Y204>519,519,Y204))+IF(R204=0,0,R204*U204),2) -> 103.92 | AA204: =TRUNC((IF(R204=0,P204*U204,(P204-R204)*U204))+(IF(Y204<519,0,Y204-519)),2)+T204 -> 944.84 | AB204: =Z204+AA204 -> 1048.76 | AE204: 0 | AF204: =IF(U204>0.01,(AA204-VLOOKUP(AA204,quincenal,1))*VLOOKUP(AA204,quincenal,3)+VLOOKUP(AA204,quincenal,2)-VLOOKUP(AA204,subquincenal,2),0) -> -151.24808 | AG204: =TRUNC(IF(AF204>0.01,AF204,0),2) -> 0 | AH204: =TRUNC(IF(AF204<0.01,-AF204,0),2) -> 151.24 | AI204: =AB204-AD204-AE204-AG204+AH204 -> 1200 | AK204: 158
A205: 104 | D205: DELEGACIONES | V205: =SUM(V200:V204) -> 6120.34 | W205: =SUM(W200:W204) -> 244.81 | X205: 428.41 | Y205: 0 | Z205: 673.22 | AA205: 6120.34 | AB205: 6793.56 | AC205: 0 | AD205: 0 | AE205: 0 | AG205: 140.46 | AH205: 237.16 | AI205: 6890.26 | AJ205: 0
V208: =V18+V24+V32+V37+V43+V48+V53+V60+V64+V71+V78+V85+V97+V107+V113+V117+V122+V129+V137+V143+V147+V152+V162+V166+V171+V177+V184+V190+V197+V205 -> 426506.18 | W208: 17060.21 | X208: 29855.16 | Y208: 0 | Z208: 46915.37 | AA208: 426506.18 | AB208: 473421.55 | AC208: 0 | AD208: 3500 | AE208: 0 | AG208: 40663.95 | AH208: 1788.86 | AI208: 431046.45
D212: L.A.F. EDUARDO RON RAMOS | P212: L.C.P. MARTIN DANIEL FREGOSO BARBOZA | AH212: ING. MARIO CAMARENA GONZALEZ RUBIO
D213: PRESIDENTE MUNICIPAL | P213: SINDICO MUNICIPAL | AH213: ENCARGADO DE LA HACIENDA PUBLICA
D221: DIRECCION DE SEGURIDAD PUBLICA
A222: =A204+1 -> 104 | D222: AGUIRRE REYES RAUL ANTONIO | H222: POLICIA DE LINEA | P222: 15 | Q222: TARJETA | S222: 0 | T222: 0 | U222: =6845/30 -> 228.1666667 | V222: =TRUNC(U222*P222,2) -> 3422.5 | W222: =TRUNC(U222*P222*0.04,2) -> 136.9 | X222: =TRUNC(U222*0.07*P222,2) -> 239.57 | Y222: =S222 -> 0 | Z222: =TRUNC(X222+W222+(IF(Y222>519,519,Y222))+IF(R222=0,0,R222*U222),2) -> 376.47 | AA222: =TRUNC((IF(R222=0,P222*U222,(P222-R222)*U222))+(IF(Y222<519,0,Y222-519)),2)+T222 -> 3422.5 | AB222: =Z222+AA222 -> 3798.97 | AD222: 0 | AE222: 0 | AF222: =IF(U222>0.01,(AA222-VLOOKUP(AA222,quincenal,1))*VLOOKUP(AA222,quincenal,3)+VLOOKUP(AA222,quincenal,2)-VLOOKUP(AA222,subquincenal,2),0) -> 143.184912 | AG222: =TRUNC(IF(AF222>0.01,AF222,0),2) -> 143.18 | AH222: =TRUNC(IF(AF222<0.01,-AF222,0),2) -> 0 | AI222: =AB222-AD222-AE222-AG222+AH222 -> 3655.79 | AK222: 1
A223: =A222+1 -> 105 | B223: 11 | C223: 17 | D223: ARVIZU GIL HOMERO JOSE | E223: AIGH730225LE1 | F223: AIGH730225HJCRLM08 | H223: POLICIA DE LINEA | P223: 15 | Q223: TARJETA | S223: 0 | T223: 0 | U223: 228.1666667 | V223: 3422.5 | W223: 136.9 | X223: 239.57 | Y223: 0 | Z223: 376.47 | AA223: 3422.5 | AB223: 3798.97 | AE223: 0 | AF223: 143.184912 | AG223: 143.18 | AH223: 0 | AI223: 3655.79 | AK223: =AK222+1 -> 2
A224: =A223+1 -> 106 | B224: 11 | C224: 17 | D224: CAMPERO MARTINEZ JUAN DANIEL | E224: ROMP450629DNA | F224: ROMP450629HJCSCB04 | H224: POLICIA EN LINEA | P224: 15 | Q224: TARJETA | S224: 0 | T224: 0 | U224: 228.1666667 | V224: 3422.5 | W224: 136.9 | X224: 239.57 | Y224: 0 | Z224: 376.47 | AA224: 3422.5 | AB224: 3798.97 | AE224: 0 | AF224: 143.184912 | AG224: 143.18 | AH224: 0 | AI224: 3655.79 | AK224: =AK223+1 -> 3
A225: =A224+1 -> 107 | B225: 11 | C225: 17 | D225: CARRILLO MURILLO SALVADOR | E225: CAMS620429F91 | F225: CAMS620429HNTRRL00 | H225: POLICIA DE LINEA | P225: 15 | Q225: TARJETA | S225: 0 | T225: 0 | U225: 228.1666667 | V225: 3422.5 | W225: 136.9 | X225: 239.57 | Y225: 0 | Z225: 376.47 | AA225: 3422.5 | AB225: 3798.97 | AE225: 0 | AF225: 143.184912 | AG225: 143.18 | AH225: 0 | AI225: 3655.79 | AK225: =AK224+1 -> 4
A226: 108 | B226: 11 | C226: 17 | D226: CASTAÑEDA ARANDAS EFREN | H226: OFICIAL DE PREVENCION SOCIAL | P226: 15 | Q226: TARJETA | S226: 0 | T226: 0 | U226: 228.1666667 | V226: 3422.5 | W226: 136.9 | X226: 239.57 | Y226: 0 | Z226: 376.47 | AA226: 3422.5 | AB226: 3798.97 | AD226: 0 | AE226: 0 | AF226: 143.184912 | AG226: 143.18 | AH226: 0 | AI226: 3655.79 | AK226: 5
A227: 109 | D227: CORONA MARTINEZ JOSE MARIANO | H227: POLICIA DE LINEA | P227: 15 | Q227: TARJETA | S227: 0 | T227: 0 | U227: 228.1666667 | V227: 3422.5 | W227: 136.9 | X227: 239.57 | Y227: 0 | Z227: 376.47 | AA227: 3422.5 | AB227: 3798.97 | AD227: 0 | AE227: 0 | AF227: 143.184912 | AG227: 143.18 | AH227: 0 | AI227: 3655.79 | AK227: 6
A228: 110 | D228: CASTRO DOMINGUEZ ZAIRA EVANGELINA | H228: POLICIA DE LINEA | P228: 15 | Q228: TARJETA | S228: 0 | T228: 0 | U228: 228.1666667 | V228: =TRUNC(U228*P228,2) -> 3422.5 | W228: =TRUNC(U228*P228*0.04,2) -> 136.9 | X228: =TRUNC(U228*0.07*P228,2) -> 239.57 | Y228: =S228 -> 0 | Z228: =TRUNC(X228+W228+(IF(Y228>519,519,Y228))+IF(R228=0,0,R228*U228),2) -> 376.47 | AA228: =TRUNC((IF(R228=0,P228*U228,(P228-R228)*U228))+(IF(Y228<519,0,Y228-519)),2)+T228 -> 3422.5 | AB228: =Z228+AA228 -> 3798.97 | AD228: 500 | AE228: 0 | AF228: =IF(U228>0.01,(AA228-VLOOKUP(AA228,quincenal,1))*VLOOKUP(AA228,quincenal,3)+VLOOKUP(AA228,quincenal,2)-VLOOKUP(AA228,subquincenal,2),0) -> 143.184912 | AG228: =TRUNC(IF(AF228>0.01,AF228,0),2) -> 143.18 | AH228: =TRUNC(IF(AF228<0.01,-AF228,0),2) -> 0 | AI228: =AB228-AD228-AE228-AG228+AH228 -> 3155.79 | AK228: 7
A229: 111 | D229: FIGUEROA GARCIA JOSE DE JESUS | H229: POLICIA DE LINEA | P229: 15 | Q229: TARJETA | S229: 0 | T229: 0 | U229: 228.1666667 | V229: 3422.5 | W229: 136.9 | X229: 239.57 | Y229: 0 | Z229: 376.47 | AA229: 3422.5 | AB229: 3798.97 | AD229: 500 | AE229: 0 | AF229: 143.184912 | AG229: 143.18 | AH229: 0 | AI229: 3155.79 | AK229: 8
D230: FIGUEROA SANTIAGO JOSE ALBERTO | H230: POLICIA DE LINEA | P230: 15 | Q230: TARJETA | S230: 0 | T230: 0 | U230: 228.1666667 | V230: =TRUNC(U230*P230,2) -> 3422.5 | W230: =TRUNC(U230*P230*0.04,2) -> 136.9 | X230: =TRUNC(U230*0.07*P230,2) -> 239.57 | Y230: =S230 -> 0 | Z230: =TRUNC(X230+W230+(IF(Y230>519,519,Y230))+IF(R230=0,0,R230*U230),2) -> 376.47 | AA230: =TRUNC((IF(R230=0,P230*U230,(P230-R230)*U230))+(IF(Y230<519,0,Y230-519)),2)+T230 -> 3422.5 | AB230: =Z230+AA230 -> 3798.97 | AD230: 0 | AE230: 0 | AF230: =IF(U230>0.01,(AA230-VLOOKUP(AA230,quincenal,1))*VLOOKUP(AA230,quincenal,3)+VLOOKUP(AA230,quincenal,2)-VLOOKUP(AA230,subquincenal,2),0) -> 143.184912 | AG230: =TRUNC(IF(AF230>0.01,AF230,0),2) -> 143.18 | AH230: =TRUNC(IF(AF230<0.01,-AF230,0),2) -> 0 | AI230: =AB230-AD230-AE230-AG230+AH230 -> 3655.79
A231: =A229+1 -> 112 | D231: GARCIA FIGUEROA GUSTAVO | E231: HEAS | H231: COMANDANTE | P231: 15 | Q231: TARJETA | S231: 0 | T231: 0 | U231: =9121/30 -> 304.0333333 | V231: 4560.5 | W231: 182.42 | X231: 319.23 | Y231: 0 | Z231: 501.65 | AA231: 4560.5 | AB231: 5062.15 | AE231: 0 | AF231: 444.747088 | AG231: 444.74 | AH231: 0 | AI231: 4617.41 | AK231: =AK229+1 -> 9
A232: 113 | D232: GARCIA FIGUEROA JOSE MANUEL | H232: COMANDANTE | P232: 15 | Q232: TARJETA | S232: 0 | T232: 0 | U232: =9121/30 -> 304.0333333 | V232: 4560.5 | W232: 182.42 | X232: 319.23 | Y232: 0 | Z232: 501.65 | AA232: 4560.5 | AB232: 5062.15 | AE232: 0 | AF232: 444.747088 | AG232: 444.74 | AH232: 0 | AI232: 4617.41 | AK232: 10
A233: 114 | B233: 11 | C233: 17 | D233: GARCIA GARCIA ROGELIO | H233: POLICIA DE LINEA | P233: 15 | Q233: TARJETA | S233: 0 | T233: 0 | U233: =6845/30 -> 228.1666667 | V233: 3422.5 | W233: 136.9 | X233: 239.57 | Y233: 0 | Z233: 376.47 | AA233: 3422.5 | AB233: 3798.97 | AD233: 0 | AE233: 0 | AF233: 143.184912 | AG233: 143.18 | AH233: 0 | AI233: 3655.79 | AK233: 11
A234: 115 | B234: 11 | C234: 17 | D234: GARCIA MAGALLANES FRANCISCO | H234: POLICIA DE LINEA | P234: 15 | Q234: TARJETA | S234: 0 | T234: 0 | U234: =6845/30 -> 228.1666667 | V234: 3422.5 | W234: 136.9 | X234: 239.57 | Y234: 0 | Z234: 376.47 | AA234: 3422.5 | AB234: 3798.97 | AD234: 0 | AE234: 0 | AF234: 143.184912 | AG234: 143.18 | AH234: 0 | AI234: 3655.79 | AK234: 12
A235: 116 | D235: GAYTAN PEREZ LUIS GABRIEL | H235: SUB DIRECTOR | P235: 15 | Q235: TARJETA | S235: 0 | T235: 0 | U235: =10948/30 -> 364.9333333 | V235: 5474 | W235: 218.96 | X235: 383.18 | Y235: 0 | Z235: 602.14 | AA235: 5474 | AB235: 6076.14 | AE235: 0 | AF235: 622.057224 | AG235: 622.05 | AH235: 0 | AI235: 5454.09 | AK235: 13
A236: 117 | B236: 11 | C236: 17 | D236: AGUIRRE MERCADO JOVANNY MISSAEL | E236: GOCB550313 | F236: GOCB550313HJCMHN07 | G236: 2007-01-01 | H236: POLICIA EN LINEA | P236: 15 | Q236: TARJETA | S236: 0 | T236: 0 | U236: =6845/30 -> 228.1666667 | V236: 3422.5 | W236: 136.9 | X236: 239.57 | Y236: 0 | Z236: 376.47 | AA236: 3422.5 | AB236: 3798.97 | AD236: 0 | AE236: 0 | AF236: 143.184912 | AG236: 143.18 | AH236: 0 | AI236: 3655.79 | AK236: 14
A237: 118 | B237: 11 | C237: 17 | D237: GONZALEZ CAMPOS JOSE MANUEL | H237: POLICIA EN LINEA | P237: 15 | Q237: TARJETA | S237: 0 | T237: 0 | U237: 228.1666667 | V237: 3422.5 | W237: 136.9 | X237: 239.57 | Y237: 0 | Z237: 376.47 | AA237: 3422.5 | AB237: 3798.97 | AD237: 500 | AE237: 0 | AF237: 143.184912 | AG237: 143.18 | AH237: 0 | AI237: 3155.79 | AK237: 15
A238: 119 | D238: HERNANDEZ ARIAS SEBASTIAN | E238: RUGE | H238: POLICIA DE LINEA | P238: 15 | Q238: TARJETA | S238: 0 | T238: 0 | U238: 228.1666667 | V238: 3422.5 | W238: 136.9 | X238: 239.57 | Y238: 0 | Z238: 376.47 | AA238: 3422.5 | AB238: 3798.97 | AD238: 500 | AE238: 0 | AF238: 143.184912 | AG238: 143.18 | AH238: 0 | AI238: 3155.79 | AK238: 16
A239: 120 | B239: 11 | C239: 17 | D239: HERNANDEZ PALACIOS ANGEL FERNANDO | H239: POLICIA EN LINEA | P239: 15 | Q239: TARJETA | S239: 0 | T239: 0 | U239: 228.1666667 | V239: 3422.5 | W239: 136.9 | X239: 239.57 | Y239: 0 | Z239: 376.47 | AA239: 3422.5 | AB239: 3798.97 | AE239: 0 | AF239: 143.184912 | AG239: 143.18 | AH239: 0 | AI239: 3655.79 | AK239: 17
A240: 121 | D240: HERNANDEZ PALACIOS REFUGIO GUADALUPE | E240: DENL910517 | F240: DENL910517HJCLVS07 | H240: POLICIA DE LINEA | P240: 15 | Q240: TARJETA | S240: 0 | T240: 0 | U240: 228.1666667 | V240: 3422.5 | W240: 136.9 | X240: 239.57 | Y240: 0 | Z240: 376.47 | AA240: 3422.5 | AB240: 3798.97 | AE240: 0 | AF240: 143.184912 | AG240: 143.18 | AH240: 0 | AI240: 3655.79 | AK240: 18
A241: =A239+1 -> 121 | D241: MANCILLAS MORA MARTIN | E241: MAMM741224 | F241: MAMM741224HCJNRR00 | H241: POLICIA EN LINEA | P241: 15 | Q241: TARJETA | S241: 0 | T241: 0 | U241: 228.1666667 | V241: 3422.5 | W241: 136.9 | X241: 239.57 | Y241: 0 | Z241: 376.47 | AA241: 3422.5 | AB241: 3798.97 | AD241: 0 | AE241: 0 | AF241: 143.184912 | AG241: 143.18 | AH241: 0 | AI241: 3655.79 | AK241: 19
A242: 122 | D242: MARQUEZ CERVANTES ALBERTO | H242: POLICIA DE LINEA | P242: 15 | Q242: TARJETA | S242: 0 | T242: 0 | U242: 228.1666667 | V242: 3422.5 | W242: 136.9 | X242: 239.57 | Y242: 0 | Z242: 376.47 | AA242: 3422.5 | AB242: 3798.97 | AD242: 0 | AE242: 0 | AF242: 143.184912 | AG242: 143.18 | AH242: 0 | AI242: 3655.79 | AK242: 20
A243: 123 | D243: MARTINEZ GARCIA JOSE ENRIQUE | H243: POLICIA DE LINEA | P243: 15 | Q243: TARJETA | S243: 0 | T243: 0 | U243: 228.1666667 | V243: 3422.5 | W243: 136.9 | X243: 239.57 | Y243: 0 | Z243: 376.47 | AA243: 3422.5 | AB243: 3798.97 | AD243: 0 | AE243: 0 | AF243: 143.184912 | AG243: 143.18 | AH243: 0 | AI243: 3655.79 | AK243: 21
A244: 124 | H244: POLICIA DE LINEA | Q244: TARJETA | S244: 0 | T244: 0 | U244: 228.1666667 | V244: 0 | W244: 0 | X244: 0 | Y244: 0 | Z244: 0 | AA244: 0 | AB244: 0 | AD244: 0 | AE244: 0 | AI244: 0 | AK244: 22
... 46 more rows

Sheet Tablas 2015
A1: TARIFA MENSUAL ISR | E1: TARIFA QUINCENAL ISR | I1: TARIFA SEMANAL ISR | M1: 0.01 | N1: 496.07 | O1: 0 | P1: 1.92
A2: 2015 | E2: 2015 | I2: 2015 | M2: 496.08 | N2: 4210.41 | O2: 9.52 | P2: 6.4
A3: Lim. Inferior | B3: Cuota Fija | C3: % | E3: Lim. Inferior | F3: Cuota Fija | G3: % | I3: Lim. Inferior | J3: Cuota Fija | K3: % | M3: 4210.42 | N3: 7399.42 | O3: 247.24 | P3: 10.88
A4: 0.01 | B4: 0 | C4: 0.0192 | E4: 0.01 | F4: 0 | G4: 0.0192 | I4: 0.01 | J4: 0 | K4: 0.0192 | M4: 7399.43 | N4: 8601.5 | O4: 594.21 | P4: 16
A5: 496.08 | B5: 9.52 | C5: 0.064 | E5: 244.81 | F5: 4.65 | G5: 0.064 | I5: 114.25 | J5: 2.17 | K5: 0.064 | M5: 8601.51 | N5: 10298.35 | O5: 786.54 | P5: 17.92
A6: 4210.42 | B6: 247.24 | C6: 0.1088 | E6: 2077.51 | F6: 121.95 | G6: 0.1088 | I6: 969.51 | J6: 56.91 | K6: 0.1088 | M6: 10298.36 | N6: 20770.29 | O6: 1090.61 | P6: 21.36
A7: 7399.43 | B7: 594.21 | C7: 0.16 | E7: 3651.01 | F7: 293.25 | G7: 0.16 | I7: 1703.81 | J7: 136.85 | K7: 0.16 | M7: 20770.3 | N7: 32736.83 | O7: 3327.42 | P7: 23.52
A8: 8601.51 | B8: 786.54 | C8: 0.1792 | E8: 4244.11 | F8: 388.05 | G8: 0.1792 | I8: 1980.59 | J8: 181.09 | K8: 0.1792 | M8: 32736.84 | N8: 62500 | O8: 6141.95 | P8: 30
A9: 10298.36 | B9: 1090.61 | C9: 0.2136 | E9: 5081.41 | F9: 538.2 | G9: 0.2136 | I9: 2371.33 | J9: 251.16 | K9: 0.2136 | M9: 62500.01 | N9: 83333.33 | O9: 15070.9 | P9: 32
A10: 20770.3 | B10: 3327.42 | C10: 0.2352 | E10: 10248.46 | F10: 1641.75 | G10: 0.2352 | I10: 4782.62 | J10: 766.15 | K10: 0.2352 | M10: 83333.34 | N10: 250000 | O10: 21737.57 | P10: 34
A11: 32736.84 | B11: 6141.95 | C11: 0.3 | E11: 16153.06 | F11: 3030.6 | G11: 0.3 | I11: 7538.1 | J11: 1414.28 | K11: 0.3 | M11: 250000.01 | N11: En adelante | O11: 78404.23 | P11: 35
A12: 62500.01 | B12: 15070.9 | C12: 0.32 | E12: 30838.81 | F12: 7436.25 | G12: 0.32 | I12: 14391.45 | J12: 3470.25 | K12: 0.32
A13: 83333.34 | B13: 21737.57 | C13: 0.34 | E13: 41118.46 | F13: 10725.75 | G13: 0.34 | I13: 19188.62 | J13: 5005.35 | K13: 0.34
A14: 250000.01 | B14: 78404.23 | C14: 0.35 | E14: 123355.21 | F14: 38686.35 | G14: 0.35 | I14: 57565.77 | J14: 18053.63 | K14: 0.35
A19: SUBSIDIO PARA EL EMPLEO | E19: SUBSIDIO PARA EL EMPLEO | I19: SUBSIDIO PARA EL EMPLEO
A20: =+A2 -> 2015 | E20: =+E2 -> 2015 | I20: =+I2 -> 2015 | L20: 0.01 | M20: 1768.96 | N20: 407.02
A21: Para | B21: SE | E21: Para | F21: SE | I21: Para | J21: SE | L21: 1768.97 | M21: 2653.38 | N21: 406.83
A22: Ingresos | B22: Mensual | E22: Ingresos | F22: Quincenal | I22: Ingresos | J22: Semanal | L22: 2653.39 | M22: 3472.84 | N22: 406.62
A23: 0.01 | B23: 407.02 | E23: 0.01 | F23: 200.85 | I23: 0.01 | J23: 93.73 | L23: 3472.85 | M23: 3537.87 | N23: 392.77
A24: 1768.97 | B24: 406.83 | E24: 872.86 | F24: 200.7 | I24: 407.34 | J24: 93.66 | L24: 3537.88 | M24: 4446.15 | N24: 382.46
A25: 2653.39 | B25: 406.62 | E25: 1309.21 | F25: 200.7 | I25: 610.97 | J25: 93.66 | L25: 4446.16 | M25: 4717.18 | N25: 354.23
A26: 3472.85 | B26: 392.77 | E26: 1713.61 | F26: 193.8 | I26: 799.69 | J26: 90.44 | L26: 4717.19 | M26: 5335.42 | N26: 324.87
A27: 3537.88 | B27: 382.46 | E27: 1745.71 | F27: 188.7 | I27: 814.67 | J27: 88.06 | L27: 5335.43 | M27: 6224.67 | N27: 294.63
A28: 4446.16 | B28: 354.23 | E28: 2193.76 | F28: 174.75 | I28: 1023.76 | J28: 81.55 | L28: 6224.68 | M28: 7113.9 | N28: 253.54
A29: 4717.19 | B29: 324.87 | E29: 2327.56 | F29: 160.35 | I29: 1086.2 | J29: 74.83 | L29: 7113.91 | M29: 7382.33 | N29: 217.61
A30: 5335.43 | B30: 294.63 | E30: 2632.66 | F30: 145.35 | I30: 1228.58 | J30: 67.83 | L30: 7382.34 | M30: En adelante | N30: 0
A31: 6224.68 | B31: 253.54 | E31: 3071.41 | F31: 125.1 | I31: 1433.33 | J31: 58.38
A32: 7113.91 | B32: 217.61 | E32: 3510.16 | F32: 107.4 | I32: 1638.08 | J32: 50.12
A33: 7382.34 | B33: 0 | E33: 3642.61 | F33: 0 | I33: 1699.89 | J33: 0
A37: CAPITULO | B37: PARTIDA | C37: CONCEC | E37: DEPENDENCIA
A38: 1 | B38: 1 | C38: 1 | D38: SALA DE REGIDORES
A39: 1 | B39: 2 | C39: 2 | D39: PRESIDENCIA MUNICIPAL
A40: 1 | B40: 5 | C40: 3 | D40: SECRETARIA GENERAL Y SINDICATURA
A41: 1 | B41: 6 | C41: 4 | D41: OFICIALIA MAYOR
A42: 1 | B42: 7 | C42: 5 | D42: DEPARTAMENTO JURIDICO
A43: 1 | B43: 14 | C43: 6 | D43: REGISTRO CIVIL
A44: 1 | B44: 16 | C44: 7 | D44: OFICIALIA MAYOR DE CULTURA
A45: 1 | B45: 19 | C45: 8 | D45: PARTICIPACION CIUDADANA
A46: 1 | B46: 23 | C46: 9 | D46: RELACIONES EXTERIORES
A47: 2 | B47: 1 | C47: 10 | D47: DELEGACIONES
A48: 2 | B48: 2 | C48: 11 | D48: AGENCIAS
A49: 3 | B49: 1 | C49: 12 | D49: HACIENDA MUNICIPAL
A50: 3 | B50: 3 | C50: 13 | D50: DEPTO. DE INGRESOS
A51: 3 | B51: 7 | C51: 14 | D51: DEPTO. DE EGRESOS
A52: 3 | B52: 12 | C52: 15 | D52: DEPTO. DE INFORMATICA
A53: 3 | B53: 13 | C53: 16 | D53: DEPTO. DE IMPUESTO PREDIAL Y CATASTRO
A54: 4 | B54: 1 | C54: 17 | D54: DIRECCION GENERAL DE OBRAS PUBLICAS
A55: 4 | B55: 3 | C55: 18 | D55: DEPTO. DE SERVICIOS PUBLICOS
A56: 4 | B56: 4 | C56: 19 | D56: DEPTO. DE CONSTRUCCION
A57: 5 | B57: 2 | C57: 20 | D57: DEPTO. DE CEMENTERIOS
A58: 5 | B58: 3 | C58: 21 | D58: DEPTO. RASTRO
A59: 5 | B59: 5 | C59: 22 | D59: DEPTO. MERCADOS
A60: 5 | B60: 7 | C60: 23 | D60: DEPTO. DE ASEO PUBLICO
A61: 5 | B61: 8 | C61: 24 | D61: DEPTO. DE PARQUES Y JARDINES
A62: 5 | B62: 9 | C62: 25 | D62: VERTEDERO
A63: 5 | B63: 10 | C63: 26 | D63: DEPTO. DE ALUMBRADO PUBLICO
A64: 5 | B64: 11 | C64: 27 | D64: DEPTO. DE AGUA DRENAJE Y ALCANTARILLADO
A65: 5 | B65: 14 | C65: 28 | D65: DIR. DE TURISMO Y DEPORTES
A66: 5 | B66: 15 | C66: 29 | D66: SERVICIO MEDICO
A67: 5 | B67: 26 | C67: 30 | D67: INSPECCION AGRICOLA Y GANADERA
A68: 11 | B68: 17 | C68: 31 | D68: SEGURIDAD PUBLICA
A69: 11 | B69: 18 | C69: 32 | D69: PROTECCION CIVIL

Sheet Hoja1
